{"text_format":"3","workbook":"xlsx","n_sheets":23,"sheets":["Suma","Część 01","Część 02","Część 03","Część 04","Część 05","Część 06","Część 07","Część 08","Część 09","Część 10","Część 11","Część 12","Część 13","Część 14","Część 15","Część 16","Część 17","Część 18","Część 19","Część 20","Część 21","Część 22"],"not_rendered":{"defined_names":28},"read":"whole","date_system":"1900"}

{"sheet":"Suma","index":0,"n_rows":24,"n_cols":3,"rows_kept":24,"merged":[[0,0,1,0],[0,1,1,1],[0,2,1,2]]}
["Pakiet","odwołanie","Nazwa"]
[]
[{"$f":"'Część 01'!$A$4","v":"Część 01"},{"$f":"HYPERLINK(\"#'Część 01'!A1\",\"przejdz do\")","v":"przejdz do"},{"$f":"'Część 01'!$A$5","v":"Generatory warunków mikroaerofilnych - CampyGen"}]
[{"$f":"'Część 02'!$A$4","v":"Część 02"},{"$f":"HYPERLINK(\"#'Część 02'!A1\",\"przejdz do\")","v":"przejdz do"},{"$f":"'Część 02'!$A$5","v":"Test do wykrywania oksydazy cytochromowej "}]
[{"$f":"'Część 03'!$A$4","v":"Część 03"},{"$f":"HYPERLINK(\"#'Część 03'!A1\",\"przejdz do\")","v":"przejdz do"},{"$f":"'Część 03'!$A$5","v":"Szybki test do wykrywania bakterii grupy coli i Escherichia coli na aparacie Quanti-Tray"}]
[{"$f":"'Część 04'!$A$4","v":"Część 04"},{"$f":"HYPERLINK(\"#'Część 04'!A1\",\"przejdz do\")","v":"przejdz do"},{"$f":"'Część 04'!$A$5","v":"Testy do kontroli czystości powierzchni"}]
[{"$f":"'Część 05'!$A$4","v":"Część 05"},{"$f":"HYPERLINK(\"#'Część 05'!A1\",\"przejdz do\")","v":"przejdz do"},{"$f":"'Część 05'!$A$5","v":"Testy do diagnostyki Norowirusów w kale"}]
[{"$f":"'Część 06'!$A$4","v":"Część 06"},{"$f":"HYPERLINK(\"#'Część 06'!A1\",\"przejdz do\")","v":"przejdz do"},{"$f":"'Część 06'!$A$5","v":"Test na octan indoksylu  "}]
[{"$f":"'Część 07'!$A$4","v":"Część 07"},{"$f":"HYPERLINK(\"#'Część 07'!A1\",\"przejdz do\")","v":"przejdz do"},{"$f":"'Część 07'!$A$5","v":"Testy do inkubacji"}]
[{"$f":"'Część 08'!$A$4","v":"Część 08"},{"$f":"HYPERLINK(\"#'Część 08'!A1\",\"przejdz do\")","v":"przejdz do"},{"$f":"'Część 08'!$A$5","v":"Mikropłytki MUG/EC"}]
[{"$f":"'Część 09'!$A$4","v":"Część 09"},{"$f":"HYPERLINK(\"#'Część 09'!A1\",\"przejdz do\")","v":"przejdz do"},{"$f":"'Część 09'!$A$5","v":"Testy do różnicowania bakterii"}]
[{"$f":"'Część 10'!$A$4","v":"Część 10"},{"$f":"HYPERLINK(\"#'Część 10'!A1\",\"przejdz do\")","v":"przejdz do"},{"$f":"'Część 10'!$A$5","v":"Zestaw do wykrywania enzymu kwaśnej fosfatazy "}]
[{"$f":"'Część 11'!$A$4","v":"Część 11"},{"$f":"HYPERLINK(\"#'Część 11'!A1\",\"przejdz do\")","v":"przejdz do"},{"$f":"'Część 11'!$A$5","v":"Testy do wykrywania aminopeptydazy"}]
[{"$f":"'Część 12'!$A$4","v":"Część 12"},{"$f":"HYPERLINK(\"#'Część 12'!A1\",\"przejdz do\")","v":"przejdz do"},{"$f":"'Część 12'!$A$5","v":"Testy lateksowe w kierunku chorobotwórczych pałeczek Escherichia coli"}]
[{"$f":"'Część 13'!$A$4","v":"Część 13"},{"$f":"HYPERLINK(\"#'Część 13'!A1\",\"przejdz do\")","v":"przejdz do"},{"$f":"'Część 13'!$A$5","v":"Testy lateksowe w kierunku pałeczek Salmonella"}]
[{"$f":"'Część 14'!$A$4","v":"Część 14"},{"$f":"HYPERLINK(\"#'Część 14'!A1\",\"przejdz do\")","v":"przejdz do"},{"$f":"'Część 14'!$A$5","v":"Testy lateksowe w kierunku Shigela sonnei"}]
[{"$f":"'Część 15'!$A$4","v":"Część 15"},{"$f":"HYPERLINK(\"#'Część 15'!A1\",\"przejdz do\")","v":"przejdz do"},{"$f":"'Część 15'!$A$5","v":"Test lateksowy do potwierdzenia Legionella sp."}]
[{"$f":"'Część 16'!$A$4","v":"Część 16"},{"$f":"HYPERLINK(\"#'Część 16'!A1\",\"przejdz do\")","v":"przejdz do"},{"$f":"'Część 16'!$A$5","v":"Testy do diagnostyki w kierunku grypy typ A, grypy typ B, wirusa RSV i wirusa SARS-CoV-2"}]
[{"$f":"'Część 17'!$A$4","v":"Część 17"},{"$f":"HYPERLINK(\"#'Część 17'!A1\",\"przejdz do\")","v":"przejdz do"},{"$f":"'Część 17'!$A$5","v":"Zestawy testów do automatycznej izolacji kwasów nukleinowych"}]
[{"$f":"'Część 18'!$A$4","v":"Część 18"},{"$f":"HYPERLINK(\"#'Część 18'!A1\",\"przejdz do\")","v":"przejdz do"},{"$f":"'Część 18'!$A$5","v":"Testy diagnostyczne do oznaczania rota i adenowirusa w próbkach kału"}]
[{"$f":"'Część 19'!$A$4","v":"Część 19"},{"$f":"HYPERLINK(\"#'Część 19'!A1\",\"przejdz do\")","v":"przejdz do"},{"$f":"'Część 19'!$A$5","v":"Test immunoenzymatyczny do jakościowej analizy Giardia lamblia w próbkach kału"}]
[{"$f":"'Część 20'!$A$4","v":"Część 20"},{"$f":"HYPERLINK(\"#'Część 20'!A1\",\"przejdz do\")","v":"przejdz do"},{"$f":"'Część 20'!$A$5","v":"Wskaźniki biologiczne do kontroli procesu sterylizacji"}]
[{"$f":"'Część 21'!$A$4","v":"Część 21"},{"$f":"HYPERLINK(\"#'Część 21'!A1\",\"przejdz do\")","v":"przejdz do"},{"$f":"'Część 21'!$A$5","v":"Wskaźniki chemiczne do kontroli procesu sterylizacji"}]
[{"$f":"'Część 22'!$A$4","v":"Część 22"},{"$f":"HYPERLINK(\"#'Część 22'!A1\",\"przejdz do\")","v":"przejdz do"},"Testy do diagnostyki w kierunku zatruć pokarmowych"]

{"sheet":"Część 01","index":1,"n_rows":20,"n_cols":10,"rows_kept":20,"merged":[[0,6,0,9],[2,0,2,9],[3,0,3,9],[4,0,4,9],[6,1,8,1],[6,2,8,2],[6,3,8,3],[6,4,6,5],[6,6,8,6],[6,7,8,7],[6,8,8,8],[6,9,8,9],[7,4,8,4],[7,5,8,5],[10,1,10,8],[11,2,11,9],[12,2,12,9],[16,2,16,9],[18,2,18,9]]}
[null,null,"AGZ.272.4.2025",{"$nulls":3},"Załącznik 1A do SWZ"]
[]
["OPIS PRZEDMIOTU ZAMÓWIENIA - KALKULACJA CENY OFERTY"]
[{"$f":"MID(CELL(\"nazwa_pliku\",A1),FIND(\"]\",CELL(\"nazwa_pliku\",A1),1)+1,100)","v":"Część 01"}]
["Generatory warunków mikroaerofilnych - CampyGen"]
[{"$f":"HYPERLINK(\"#'Suma'!A1\",\"wstecz\")","v":"wstecz"}]
[null,"L.p.","Przedmiot zamówienia","Szczegółowy opis","Opis oferowanego produktu",null,"Jednostka miary","Ilość","Cena jednostkowa brutto [zł] **","Wartość brutto [zł] "]
[{"$nulls":4},"Producent*","Nr katalogowy producenta*"]
[]
[null,"1.","CampyGen – saszetki – generatory warunków mikroaerofilnych ","• zastosowanie: do hodowli Campylobacter spp.;\n• przeznaczone do plastikowych torebek na maksymalnie 2 płytki Petriego (Ø 9 cm);\n• składnik aktywny – kwas askorbinowy;\n• generator gazowy umożliwia wytworzenie atmosfery o składzie: 5% O2, 10% CO2, 85% N2;\n• reakcja z użyciem tego typu generatora nie wymaga katalizatora, obecności wody, a podczas reakcji nie wydziela się wodór.\n",null,null,"op.= 20 saszetek",4,null,{"$f":"H10*I10","v":{"v":0,"d":"0.00"}}]
[null,"Cena oferty (brutto):",{"$nulls":7},{"$f":"SUM(J10:J10)","v":{"v":0,"d":"0.00"}}]
[null,"*","Należy wpisać nazwę producenta oraz numer katalogowy producenta oferowanego produktu. Niepodanie ww. danych będzie skutkować odrzuceniem oferty, chyba że dane te będą jednoznacznie wynikać z innych dokumentów dołączonych do oferty."]
[null,"**","Zawiera podatek od towarów i usług (VAT) wg obowiązującej stawki oraz koszty wszystkich świadczeń niezbędnych do wykonania zamówienia, w szczególności koszty transportu, ubezpieczenia, opakowania (także kaucjonowanego) itp."]
[]
[null,"Wymagania dodatkowe:"]
[]
[null,"1.","Do dostawy wymagane certyfikaty jakości lub inne dokumenty potwierdzające jakość produktu w j. polskim lub j. angielskim w wersji papierowej lub dostępne w formie elektronicznej w miejscu wskazanym przez Wykonawcę (adres strony www)."]
[null,"2.","Okres ważności: min. 12 miesięcy od daty dostawy."]
[null,"3.","Produkt wymieniony w tabeli musi być wyrobem medycznym w rozumieniu ustawy z dn. 07 kwietnia 2022 r. o wyrobach medycznych."]
[null,"4.","Miejsce dostawy:\n","WSSE Kraków  ul. Prądnicka 76, 31-202 Kraków\n"]

{"sheet":"Część 02","index":2,"n_rows":25,"n_cols":10,"rows_kept":25,"merged":[[0,6,0,9],[2,0,2,9],[3,0,3,9],[4,0,4,9],[6,1,8,1],[6,2,8,2],[6,3,8,3],[6,4,6,5],[6,6,8,6],[6,7,8,7],[6,8,8,8],[6,9,8,9],[7,4,8,4],[7,5,8,5],[12,1,12,8],[13,2,13,9],[14,2,14,9],[18,2,18,9],[19,2,19,9],[20,2,20,9],[21,2,21,7]]}
[null,null,{"$f":"'Część 01'!$C$1","v":"AGZ.272.4.2025"},{"$nulls":3},"Załącznik 1A do SWZ"]
[]
["OPIS PRZEDMIOTU ZAMÓWIENIA - KALKULACJA CENY OFERTY"]
[{"$f":"MID(CELL(\"nazwa_pliku\",A1),FIND(\"]\",CELL(\"nazwa_pliku\",A1),1)+1,100)","v":"Część 02"}]
["Test do wykrywania oksydazy cytochromowej "]
[{"$f":"HYPERLINK(\"#'Suma'!A1\",\"wstecz\")","v":"wstecz"}]
[null,"L.p.","Przedmiot zamówienia","Szczegółowy opis","Opis oferowanego produktu",null,"Jednostka miary","Ilość","Cena jednostkowa brutto [zł] **","Wartość brutto [zł] "]
[{"$nulls":4},"Producent*","Nr katalogowy producenta*"]
[]
[null,"1.","Test na oksydazę cytochromową","• paski testowe ze strefą reakcyjną do wykrywania oksydazy cytochromowej w mikroorganizmach;\n• odczyt paska testowego natychmiast, nie później niż w przeciągu 1 minuty",null,null,"op.= 50szt.",13,null,{"$f":"H10*I10","v":{"v":0,"d":"0.00"}}]
[null,"2.","Test na oksydazę cytochromową","• paski testowe ze strefą reakcyjną do wykrywania oksydazy cytochromowej w mikroorganizmach;\n• odczyt paska testowego natychmiast, nie później niż w przeciągu 1 minuty",null,null,"op.= 50szt.",7,null,{"$f":"H11*I11","v":{"v":0,"d":"0.00"}}]
[null,"3.","Test na oksydazę cytochromową","• paski testowe ze strefą reakcyjną do wykrywania oksydazy cytochromowej w mikroorganizmach;\n•  odczyt paska testowego natychmiast, nie później niż w przeciągu 1 minuty",null,null,"op.= 50szt.",8,null,{"$f":"H12*I12","v":{"v":0,"d":"0.00"}}]
[null,"Cena oferty (brutto):",{"$nulls":7},{"$f":"SUM(J10:J12)","v":{"v":0,"d":"0.00"}}]
[null,"*","Należy wpisać nazwę producenta oraz numer katalogowy producenta oferowanego produktu. Niepodanie ww. danych będzie skutkować odrzuceniem oferty, chyba że dane te będą jednoznacznie wynikać z innych dokumentów dołączonych do oferty."]
[null,"**","Zawiera podatek od towarów i usług (VAT) wg obowiązującej stawki oraz koszty wszystkich świadczeń niezbędnych do wykonania zamówienia, w szczególności koszty transportu, ubezpieczenia, opakowania (także kaucjonowanego) itp."]
[]
[null,"Wymagania dodatkowe:"]
[]
[null,"1.","Do dostawy wymagany certyfikat jakości lub certyfikat CE lub deklaracja zgodności CE w j. polskim lub angielskim w wersji papierowej lub dostępny w formie elektronicznej w miejscu wskazanym przez Wykonawcę (adres strony www)."]
[null,"2.","Do dostawy wymagana instrukcja wykonania w j. polskim  w wersji papierowej lub dostępna w formie elektronicznej w miejscu wskazanym przez Wykonawcę (adres strony www)."]
[null,"3.","Okres ważności: min. 12 miesięcy  od daty dostawy.  W przypadku okresu ważności krótszyego niż 12 miesięcy, wymagane jest min. ¾ okresu ważności deklarowanego przez producenta (zapisanego w certyfikacie jakości lub innm dokumencie do danej partii), o którym mowa w pkt. 1."]
[null,"4.","Produkty wymienione w tabeli muszą być wyrobem medycznym w rozumieniu ustawy z dn. 07 kwietnia 2022 r. o wyrobach medycznych."]
[null,"5.","Miejsce dostawy:\n","WSSE Kraków  ul. Prądnicka 76, 31-202 Kraków - dla poz 1\n"]
[{"$nulls":3},"WSSE Oddział Laboratoryjny w Tarnowie  ul. Mościckiego 10,  33-100 Tarnów - dla poz. 2   \n"]
[{"$nulls":3},"WSSE Oddział Laboratoryjny w Wadowicach  ul. Teatralna 2, 34-100 Wadowice - dla poz. 3\n"]

{"sheet":"Część 03","index":3,"n_rows":31,"n_cols":10,"rows_kept":31,"merged":[[0,6,0,9],[2,0,2,9],[3,0,3,9],[4,0,4,9],[6,1,8,1],[6,2,8,2],[6,3,8,3],[6,4,6,5],[6,6,8,6],[6,7,8,7],[6,8,8,8],[6,9,8,9],[7,4,8,4],[7,5,8,5],[17,1,17,8],[18,2,18,9],[19,2,19,9],[23,2,23,9],[24,2,24,9],[26,2,26,9],[27,2,27,5],[28,2,28,5]]}
[null,null,{"$f":"'Część 01'!$C$1","v":"AGZ.272.4.2025"},{"$nulls":3},"Załącznik 1A do SWZ"]
[]
["OPIS PRZEDMIOTU ZAMÓWIENIA - KALKULACJA CENY OFERTY"]
[{"$f":"MID(CELL(\"nazwa_pliku\",A1),FIND(\"]\",CELL(\"nazwa_pliku\",A1),1)+1,100)","v":"Część 03"}]
["Szybki test do wykrywania bakterii grupy coli i Escherichia coli na aparacie Quanti-Tray"]
[{"$f":"HYPERLINK(\"#'Suma'!A1\",\"wstecz\")","v":"wstecz"}]
[null,"L.p.","Przedmiot zamówienia","Szczegółowy opis","Opis oferowanego produktu",null,"Jednostka miary","Ilość","Cena jednostkowa brutto [zł] **","Wartość brutto [zł] "]
[{"$nulls":4},"Producent*","Nr katalogowy producenta*"]
[]
[null,"1.","Wzorzec zabarwienia dla testu ilościowy","• zastosowanie: do oceny wyników wykonanego testu wykrywającego bakterie grupy coli i Escherichia coli.",null,null,"op. =1szt.",2,null,{"$f":"H10*I10","v":{"v":0,"d":"0.00"}}]
[null,"2.","Wzorzec zabarwienia dla testu ilościowy","• zastosowanie: do oceny wyników wykonanego testu wykrywającego bakterie grupy coli i Escherichia coli.",null,null,"op. =1szt.",2,null,{"$f":"H11*I11","v":{"v":0,"d":"0.00"}}]
[null,"3.","Pożywka Colilert - 18","• zastosowanie: do wykonania szybkiego testu wykrywającego bakterie grupy coli i Escherichia coli;\n• podłoże sypkie\n• porcjowane w saszetkach;\n– zawartość saszetki do rozpuszczenia w 100 ml badanej próbki;\n• umożliwiające odczyt po 18 godzinach.\n",null,null,"op. = 200 szt.",4,null,{"v":0,"d":"0.00"}]
[null,"4.","Pożywka Colilert - 18","• zastosowanie: do wykonania szybkiego testu wykrywającego bakterie grupy coli i Escherichia coli;\n• podłoże sypkie\n• porcjowane w saszetkach;\n– zawartość saszetki do rozpuszczenia w 100 ml badanej próbki;\n• umożliwiające odczyt po 18 godzinach.\n",null,null,"op. = 200 szt.",2,null,{"v":0,"d":"0.00"}]
[null,"5.","Jednorazowe tacki do aparatu Quanti-Tray 2000","• zastosowanie: do wykonania szybkiego testu wykrywającego bakterie grupy coli i Escherichia coli;\n• każda tacka z 97 dołkami do zliczania bakterii;\n• zakres zliczania: od 1 do 2419 cfu/100 ml.\n",null,null,"op.=\n100 szt.",8,null,{"v":0,"d":"0.00"}]
[null,"6.","Jednorazowe tacki do aparatu Quanti-Tray 2000","• zastosowanie: do wykonania szybkiego testu wykrywającego bakterie grupy coli i Escherichia coli;\n• każda tacka z 97 dołkami do zliczania bakterii;\n• zakres zliczania: od 1 do 2419 cfu/100 ml.\n",null,null,"op.=\n100 szt.",4,null,{"v":0,"d":"0.00"}]
[null,"7.","Butelki z tworzywa sztucznego, przeźroczyste, nie wykazujace fluorescencji","• zastosowanie: do wykonania szybkiego testu wykrywającego bakterie grupy coli i Escherichia coli;\n• sterylne;\n• jednorazowe, z nakrętką;\n• pojemność 120 ml, miarowe.\n",null,null,"op.=\n200 szt.",2,null,{"v":0,"d":"0.00"}]
[null,"8.","Butelki z tworzywa sztucznego, przeźroczyste, nie wykazujace fluorescencji","• zastosowanie: do wykonania szybkiego testu wykrywającego bakterie grupy coli i Escherichia coli;\n• sterylne;\n• jednorazowe, z nakrętką;\n• pojemność 120 ml, miarowe.\n",null,null,"op.=\n200 szt.",4,null,{"v":0,"d":"0.00"}]
[null,"Cena oferty (brutto):",{"$nulls":7},{"$f":"SUM(J10:J17)","v":{"v":0,"d":"0.00"}}]
[null,"*","Należy wpisać nazwę producenta oraz numer katalogowy producenta oferowanego produktu. Niepodanie ww. danych będzie skutkować odrzuceniem oferty, chyba że dane te będą jednoznacznie wynikać z innych dokumentów dołączonych do oferty."]
[null,"**","Zawiera podatek od towarów i usług (VAT) wg obowiązującej stawki oraz koszty wszystkich świadczeń niezbędnych do wykonania zamówienia, w szczególności koszty transportu, ubezpieczenia, opakowania (także kaucjonowanego) itp."]
[]
[null,"Wymagania dodatkowe:"]
[]
[null,"1.","Do dostawy wymagany certyfikat jakości lub certyfikat CE lub deklaracja zgodności CE w j. polskim lub angielskim w wersji papierowej lub dostępny w formie elektronicznej w miejscu wskazanym przez Wykonawcę (adres strony www)."]
[null,"2.","Do dostawy  wymagane instrukcje wykonania w j. polskim lub angielskim w wersji papierowej lub dostępne w formie elektronicznej w miejscu wskazanym przez Wykonawcę (adres strony www)."]
[null,"3.","Wszystkie elementy potrzebne do wykonania szybkiego testu (pozycje od 1-8) muszą być kompatybilne ze sobą oraz aparatem Quanti-Tray."]
[null,"4.","Dla poz. 1, 2  wymagany termin ważności: min. 6 miesięcy od daty dostawy."]
[null,"5.","Dla poz. 3, 4 wymagany okres ważności: min. 8 miesięcy od daty dostawy. "]
[null,"6.","Dla poz. 5-8 wymagany termin ważności: min. 12 miesięcy od daty dostawy. "]
[null,"7.","Miejsce dostawy:\n","WSSE Kraków  ul. Prądnicka 76, 31-202 Kraków - dla poz. 1, 3, 5, 8\n"]
[{"$nulls":3},"WSSE Oddział Laboratoryjny w Tarnowie  ul. Mościckiego 10,  33-100 Tarnów- dla poz. 2, 4, 6, 7\n"]

{"sheet":"Część 04","index":4,"n_rows":34,"n_cols":10,"rows_kept":34,"merged":[[0,6,0,9],[2,0,2,9],[3,0,3,9],[4,0,4,9],[6,1,8,1],[6,2,8,2],[6,3,8,3],[6,4,6,5],[6,6,8,6],[6,7,8,7],[6,8,8,8],[6,9,8,9],[7,4,8,4],[7,5,8,5],[12,1,12,8],[13,2,13,9],[14,2,14,9],[15,2,15,9],[19,2,19,9],[20,2,20,9]]}
[null,null,{"$f":"'Część 01'!$C$1","v":"AGZ.272.4.2025"},{"$nulls":3},"Załącznik 1A do SWZ"]
[]
["OPIS PRZEDMIOTU ZAMÓWIENIA - KALKULACJA CENY OFERTY"]
[{"$f":"MID(CELL(\"nazwa_pliku\",A1),FIND(\"]\",CELL(\"nazwa_pliku\",A1),1)+1,100)","v":"Część 04"}]
["Testy do kontroli czystości powierzchni"]
[{"$f":"HYPERLINK(\"#'Suma'!A1\",\"wstecz\")","v":"wstecz"}]
[null,"L.p.","Przedmiot zamówienia","Szczegółowy opis","Opis oferowanego produktu",null,"Jednostka miary***","Ilość***","Cena jednostkowa brutto [zł] **","Wartość brutto [zł] "]
[{"$nulls":4},"Producent*","Nr katalogowy producenta*"]
[]
[null,"1.","Płytki odciskowe (kontaktowe) do badania czystości powierzchni","• zastosowanie: do oznaczania ogólnej liczby drobnoustrojów w ramach monitorowania czystości mikrobiologicznej powierzchni;\n• płytka agarowa z subtancjami neutralizującymi;\n• powierzchnia kontrolna płytki: 25 cm2 ± 1 cm2\n• menisk wypukły agaru;\n• potrójne pakowanie;\n• skład: \n - pepton z kazeiny - 15 g/l, \n - pepton sojowy - 5 g/l, \n - NaCl - 5 g/l, \n - Agar - 15-20 g/l, \n - Tween 80 - 5 g/l,\n - Lecytyna - 0,7 g/l, \n - Histydyna - 0,5 - 1 g/l, \n - Tiosiarczan sodu 0,5 g/l.\n• pakowanie: 10 lub 20 płytek w opakowaniu\n• wymagana ilość: 580 płytek",null,null,"op. = 20 płytek***\n",29,null,{"$f":"H10*I10","v":{"v":0,"d":"0.00"}}]
[null,"2.","Płytki odciskowe (kontaktowe) do badania czystości powierzchni","• zastosowanie: do oznaczania ogólnej liczby drobnoustrojów w ramach monitorowania czystości mikrobiologicznej powierzchni;\n• płytka agarowa z subtancjami neutralizującymi;\n• powierzchnia kontrolna płytki: 25 cm2 ± 1 cm2\n• menisk wypukły agaru;\n• potrójne pakowanie;\n• skład: \n - pepton z kazeiny - 15 g/l, \n - pepton sojowy - 5 g/l, \n - NaCl - 5 g/l, \n - Agar - 15-20 g/l, \n - Tween 80 - 5 g/l,\n - Lecytyna - 0,7 g/l, \n - Histydyna - 0,5 - 1 g/l, \n - Tiosiarczan sodu 0,5 g/l.\n• pakowanie: 10 lub 20 płytek w opakowaniu\n• wymagana ilość:  160 płytek",null,null,"op. = 20 płytek***",8,null,{"$f":"H11*I11","v":{"v":0,"d":"0.00"}}]
[null,"3.","Płytki odciskowe (kontaktowe) do badania czystości powierzchni","• zastosowanie: do oznaczania ogólnej liczby drobnoustrojów w ramach monitorowania czystości mikrobiologicznej powierzchni;\n• płytka agarowa z subtancjami neutralizującymi;\n• powierzchnia kontrolna płytki: 25 cm2 ± 1 cm2\n• menisk wypukły agaru;\n• potrójne pakowanie;\n• skład: \n - pepton z kazeiny - 15 g/l, \n - pepton sojowy - 5 g/l, \n - NaCl - 5 g/l, \n - Agar - 15-20 g/l, \n - Tween 80 - 5 g/l,\n - Lecytyna - 0,7 g/l, \n - Histydyna - 0,5 - 1 g/l, \n - Tiosiarczan sodu 0,5 g/l.\n• pakowanie: 10 lub 20 płytek w opakowaniu\n• wymagana ilość: 100  płytek",null,null,"op. = 20 płytek***",5,null,{"v":0,"d":"0.00"}]
[null,"Cena oferty (brutto):",{"$nulls":7},{"$f":"SUM(J10:J12)","v":{"v":0,"d":"0.00"}}]
[null,"*","Należy wpisać nazwę producenta oraz numer katalogowy producenta oferowanego produktu. Niepodanie ww. danych będzie skutkować odrzuceniem oferty, chyba że dane te będą jednoznacznie wynikać z innych dokumentów dołączonych do oferty."]
[null,"**","Zawiera podatek od towarów i usług (VAT) wg obowiązującej stawki oraz koszty wszystkich świadczeń niezbędnych do wykonania zamówienia, w szczególności koszty transportu, ubezpieczenia, opakowania (także kaucjonowanego) itp."]
[null,"***","Należy wpisać odpowiednio jednostkę miary i ilość oferowanych jednostek miary. \nUWAGA: Przy wskazaniu jako jednostki miary - \"opakowanie\" należy wpisać ile płytek zawartych jest w opakowaniu, np.: opakowanie  = 20 płytek\nJako jednostkę miary należy wskazać opakowanie, które zostanie wycenione w kolumnie \"cena jednostkowa brutto\" i będzie możliwym zrealizowanie zamówienia na takie pojedyncze opakowanie."]
[]
[null,"Wymagania dodatkowe:"]
[]
[null,"1.","Do dostawy wymagany certyfikat jakości / certyfikat CE /deklaracja zgodności CE lub inny dokument potwierdzający jakość produktu w j. polskim lub j. angielskim w formie papierowej lub dostępny w formie elektronicznej w miejscu wskazanym przez wykonawcę (adres strony www)."]
[null,"2.","W/w dokument musi zawierać:"]
[null,null,"• nazwę produktu,"]
[null,null,"• nazwę producenta,"]
[null,null,"• skład pożywki,"]
[null,null,"• ogólna charakterystykę,"]
[null,null,"• charakterystykę mikrobiologiczną (w tym wyniki kontroli mikrobiologicznej szczepami odniesienia w kolekcji ATCC)."]
[null,"3.","Okres ważności płytek: min. 30 tygodni od daty dostawy. "]
[null,"4.","Miejsce dostawy:\n","WSSE Kraków  ul. Prądnicka 76, 31-202 Kraków - dla poz. 1\n"]
[{"$nulls":3},"WSSE Oddział Laboratoryjny w Tarnowie  ul. Mościckiego 10,  33-100 Tarnów - dla poz. 2      \n"]
[{"$nulls":3},"WSSE Oddział Laboratoryjny w Wadowicach  ul. Teatralna 2, 34-100 Wadowice - dla poz. 3\n"]
[null,"5."]
[null,"6."]
[null,"7."]
[null,"8."]

{"sheet":"Część 05","index":5,"n_rows":23,"n_cols":10,"rows_kept":23,"merged":[[0,6,0,9],[2,0,2,9],[3,0,3,9],[4,0,4,9],[6,1,8,1],[6,2,8,2],[6,3,8,3],[6,4,6,5],[6,6,8,6],[6,7,8,7],[6,8,8,8],[6,9,8,9],[7,4,8,4],[7,5,8,5],[10,1,10,8],[11,2,11,9],[12,2,12,9],[18,2,18,9],[19,2,19,9]]}
[null,null,{"$f":"'Część 01'!$C$1","v":"AGZ.272.4.2025"},{"$nulls":3},"Załącznik 1A do SWZ"]
[]
["OPIS PRZEDMIOTU ZAMÓWIENIA - KALKULACJA CENY OFERTY"]
[{"$f":"MID(CELL(\"nazwa_pliku\",A1),FIND(\"]\",CELL(\"nazwa_pliku\",A1),1)+1,100)","v":"Część 05"}]
["Testy do diagnostyki Norowirusów w kale"]
[{"$f":"HYPERLINK(\"#'Suma'!A1\",\"wstecz\")","v":"wstecz"}]
[null,"L.p.","Przedmiot zamówienia","Szczegółowy opis","Opis oferowanego produktu",null,"Jednostka miary","Ilość","Cena jednostkowa brutto [zł] **","Wartość brutto [zł] "]
[{"$nulls":4},"Producent*","Nr katalogowy producenta*"]
[]
[null,"1.","Test immunoenzymatyczny do jakościowej oceny obecności  antygenu Norowirusów  grupy genowej I i II w próbkach kału\n\n","• zasowanie: test immunoenzymatyczny do wykrywania specyficznych antygenów Norowirusów grupy genowej I i II w kale (metoda ELISA)\n• zestaw zawiera:\n - mikropłytkę reakcyjną (mikrotitracyjną)z mozliwością łamania stripów,\n - koncentrat buforu płuczącego,\n - bufor do rozcieńczenia próbek,\n - kontrolę pozytywną,\n -dwa koniugaty i substrat,\n -odczynnik do zatrzymania reakcji,\n - kontrolę negatywną;                                            \n• wszystkie odczynniki w zestawie, z wyjątkiem buforu płuczącego gotowe do użycia;                  \n• inkubacja próbki w temperaturze pokojowej       \n• dwa etapy płukania buforem;                   \n• spektrofotometryczny odczyt wyniku                  \n• szacowanie wyników w oparciu o cut- off obliczany na podstawie kontroli negatywnej.\n",null,null,"zestaw = 96 oznaczeń",3,null,{"$f":"H10*I10","v":{"v":0,"d":"0.00"}}]
[null," ",{"$nulls":7},{"$f":"SUM(J10:J10)","v":{"v":0,"d":"0.00"}}]
[null,"*","Należy wpisać nazwę producenta oraz numer katalogowy producenta oferowanego produktu. Niepodanie ww. danych będzie skutkować odrzuceniem oferty, chyba że dane te będą jednoznacznie wynikać z innych dokumentów dołączonych do oferty."]
[null,"**","Zawiera podatek od towarów i usług (VAT) wg obowiązującej stawki oraz koszty wszystkich świadczeń niezbędnych do wykonania zamówienia, w szczególności koszty transportu, ubezpieczenia, opakowania (także kaucjonowanego) itp."]
[]
[null,"Wymagania dodatkowe:"]
[]
[null,"1.","Do oferty wymagany certyfikat jakości lub certyfikat CE lub deklaracja zgodności CE w j. polskim lub j. angielskim"]
[null,"2.","Do oferty wymagana instrukcja wykonania testu w j.polskim."]
[null,"3.","Do dostawy wymagany certyfikat jakości i lub certyfikat CE lub deklaracja zgodności CE w j. polskim lub j. angielskim w wersji papierowej lub dostępny w formie elektronicznej w miejscu wskazanym przez Wykonawcę (adres strony www)."]
[null,"4.","Do każdego dostarczonego zestawu testów wymagana instrukcja wykonania testu w j. polskim. w wersji papierowej lub dostępna w formie elektronicznej w miejscu wskazanym przez Wykonawcę (adres strony www)."]
[null,"5.","Okres ważności: min. 10 miesięcy od daty dostawy."]
[null,"6.","Produkt wymieniony w tabeli musi być wyrobem medycznym w rozumieniu ustawy z dn. 07 kwietnia 2022 r. o wyrobach medycznych."]
[null,"7.","Miejsce dostawy: \n","WSSE w Krakowie  ul. Prądnicka 76, 31-202 Kraków"]

{"sheet":"Część 06","index":6,"n_rows":21,"n_cols":10,"rows_kept":21,"merged":[[0,6,0,9],[2,0,2,9],[3,0,3,9],[4,0,4,9],[6,1,8,1],[6,2,8,2],[6,3,8,3],[6,4,6,5],[6,6,8,6],[6,7,8,7],[6,8,8,8],[6,9,8,9],[7,4,8,4],[7,5,8,5],[10,1,10,8],[11,2,11,9],[12,2,12,9],[16,2,16,9],[17,2,17,9],[18,2,18,9]]}
[null,null,{"$f":"'Część 01'!$C$1","v":"AGZ.272.4.2025"},{"$nulls":3},"Załącznik 1A do SWZ"]
[]
["OPIS PRZEDMIOTU ZAMÓWIENIA - KALKULACJA CENY OFERTY"]
[{"$f":"MID(CELL(\"nazwa_pliku\",A1),FIND(\"]\",CELL(\"nazwa_pliku\",A1),1)+1,100)","v":"Część 06"}]
["Test na octan indoksylu  "]
[{"$f":"HYPERLINK(\"#'Suma'!A1\",\"wstecz\")","v":"wstecz"}]
[null,"L.p.","Przedmiot zamówienia","Szczegółowy opis","Opis oferowanego produktu",null,"Jednostka miary","Ilość","Cena jednostkowa brutto [zł] **","Wartość brutto [zł] "]
[{"$nulls":4},"Producent*","Nr katalogowy producenta*"]
[]
[null,"1.","Test na octan indoksylu \n(Indoxyl Test)","• zastosowanie: do szybkiego wykrywania aktywności esterazy octanowej bakterii, w tym Campylobacter;\n• do wykonania 50 oznaczeń.",null,null,"op. = 50 testów",1,null,{"$f":"H10*I10","v":{"v":0,"d":"0.00"}}]
[null,"Cena oferty (brutto):",{"$nulls":7},{"$f":"SUM(J10:J10)","v":{"v":0,"d":"0.00"}}]
[null,"*","Należy wpisać nazwę producenta oraz numer katalogowy producenta oferowanego produktu. Niepodanie ww. danych będzie skutkować odrzuceniem oferty, chyba że dane te będą jednoznacznie wynikać z innych dokumentów dołączonych do oferty."]
[null,"**","Zawiera podatek od towarów i usług (VAT) wg obowiązującej stawki oraz koszty wszystkich świadczeń niezbędnych do wykonania zamówienia, w szczególności koszty transportu, ubezpieczenia, opakowania (także kaucjonowanego) itp."]
[]
[null,"Wymagania dodatkowe:"]
[]
[null,"1.","Do dostawy wymagany certyfikat jakości lub certyfikat CE lub deklaracja zgodności CE w j. polskim lub angielskim w wersji papierowej lub dostępny w formie elektronicznej w miejscu wskazanym przez Wykonawcę (adres strony www)."]
[null,"2.","Do  dostarczonego zestawu testów wymagana instrukcja wykonania w j. polskim lub j. angielskim w wersji papierowej lub dostępna w formie elektronicznej w miejscu wskazanym przez Wykonawcę (adres strony www)."]
[null,"3.","Okres ważności: min. 11 miesięcy od daty dostawy."]
[null,"4.","Produkt wymieniony w tabeli musi być wyrobem medycznym w rozumieniu ustawy z dn. 07 kwietnia 2022 r. o wyrobach medycznych."]
[null,"5.","Miejsce dostawy: \n","WSSE Kraków  ul. Prądnicka 76, 31-202 Kraków"]

{"sheet":"Część 07","index":7,"n_rows":28,"n_cols":10,"rows_kept":28,"merged":[[0,8,0,9],[2,0,2,9],[3,0,3,9],[4,0,4,9],[6,1,8,1],[6,2,8,2],[6,3,8,3],[6,4,6,5],[6,6,8,6],[6,7,8,7],[6,8,8,8],[6,9,8,9],[7,4,8,4],[7,5,8,5],[16,1,16,7],[17,2,17,9],[18,2,18,9],[22,2,22,9],[23,2,23,9],[24,2,24,9]]}
[null,null,{"$f":"'Część 01'!$C$1","v":"AGZ.272.4.2025"},{"$nulls":5},"Załącznik 1A do SWZ"]
[]
["OPIS PRZEDMIOTU ZAMÓWIENIA - KALKULACJA CENY OFERTY"]
[{"$f":"MID(CELL(\"nazwa_pliku\",A1),FIND(\"]\",CELL(\"nazwa_pliku\",A1),1)+1,100)","v":"Część 07"}]
["Testy do inkubacji"]
[{"$f":"HYPERLINK(\"#'Suma'!A1\",\"wstecz\")","v":"wstecz"}]
[null,"L.p.","Przedmiot zamówienia","Szczegółowy opis","Opis oferowanego produktu",null,"Jednostka miary","Ilość","Cena jednostkowa brutto [zł] **","Wartość brutto [zł] "]
[{"$nulls":4},"Producent*","Nr katalogowy producenta*"]
[]
[null,"1.","Odczynnik do wytwarzania atmosfery beztlenowej","• zastosowanie: odczynnik do wytwarzania atmosfery beztlenowej w słojach do inkubacji; w saszetkach; bez dodawania wody.\n\n",null,null,"op. = 10 wkładów",6,null,{"$f":"H10*I10","v":{"v":0,"d":"0.00"}}]
[null,"2.","Odczynnik do wytwarzania atmosfery beztlenowej w torebkach","• zastosowanie: odczynnik do wytwarzania atmosfery beztlenowej w torebkach do inkubacji 4 płytek Petriego;\n• przeznaczone do woreczków na 4 płytki Petriego (Ø 9 cm);\n• bez dodatku wody;\n• zestaw zawiera 10 kompletów (torebki + wkłady).",null,null,"zestaw",7,null,{"$f":"H11*I11","v":{"v":0,"d":"0.00"}}]
[null,"3.","Odczynnik do wytwarzania atmosfery beztlenowej w torebkach","• zastosowanie: odczynnik do wytwarzania atmosfery beztlenowej w torebkach do inkubacji 4 płytek Petriego;\n• przeznaczone do woreczków na 4 płytki Petriego (Ø 9 cm);\n• bez dodatku wody;\n• zestaw zawiera 10 kompletów (torebki + wkłady).",null,null,"zestaw",8,null,{"v":0,"d":"0.00"}]
[null,"4.","Odczynnik do wytwarzania atmosfery beztlenowej w torebkach","• zastosowanie: odczynnik do wytwarzania atmosfery beztlenowej w torebkach do inkubacji 4 płytek Petriego;\n• przeznaczone do woreczków na 4 płytki Petriego (Ø 9 cm);\n• bez dodatku wody;\n• zestaw zawiera 10 kompletów (torebki + wkłady).",null,null,"zestaw",7,null,{"v":0,"d":"0.00"}]
[null,"5.","Paski do kontroli warunków beztlenowych. ","• zastosowanie: paski do kontroli warunków beztlenowych;\n• stosowany razem z odczynnikiem do wytwarzania atmosfery beztlenowej w torebkach do inkubacji 4 płytek Petriego (Ø 9 cm).\n",null,null,"op.= \n100szt.",1,null,{"v":0,"d":"0.00"}]
[null,"6.","Paski do kontroli warunków beztlenowych. ","• zastosowanie: paski do kontroli warunków beztlenowych;\n• stosowany razem z odczynnikiem do wytwarzania atmosfery beztlenowej w torebkach do inkubacji 4 płytek Petriego (Ø 9 cm).\n",null,null,"op.= \n100szt.",1,null,{"$f":"H15*I15","v":{"v":0,"d":"0.00"}}]
[null,"7.","Paski do kontroli warunków beztlenowych. ","• zastosowanie: paski do kontroli warunków beztlenowych;\n• stosowany razem z odczynnikiem do wytwarzania atmosfery beztlenowej w torebkach do inkubacji 4 płytek Petriego (Ø 9 cm).\n",null,null,"op.= \n100szt.",1,null,{"v":0,"d":"0.00"}]
[null,"Cena oferty (brutto):",{"$nulls":7},{"$f":"SUM(J10:J16)","v":{"v":0,"d":"0.00"}}]
[null,"*","Należy wpisać nazwę producenta oraz numer katalogowy producenta oferowanego produktu. Niepodanie ww. danych będzie skutkować odrzuceniem oferty, chyba że dane te będą jednoznacznie wynikać z innych dokumentów dołączonych do oferty."]
[null,"**","Zawiera podatek od towarów i usług (VAT) wg obowiązującej stawki oraz koszty wszystkich świadczeń niezbędnych do wykonania zamówienia, w szczególności koszty transportu, ubezpieczenia, opakowania (także kaucjonowanego) itp."]
[]
[null,"Wymagania dodatkowe:"]
[]
[null,"1.","Do dostawy wymagany certyfikat jakości lub certyfikat CE lub deklaracja zgodności CE w j. polskim lub angielskim w wersji papierowej lub dostępny w formie elektronicznej w miejscu wskazanym przez Wykonawcę (adres strony www)."]
[null,"2.","Do dostawy wymagana instrukcja wykonania w j. polskim lub j. angielskim w wersji papierowej lub dostępna w formie elektronicznej w miejscu wskazanym przez Wykonawcę (adres strony www)."]
[null,"3.","Okres ważności: min. 12 miesięcy od daty dostawy. "]
[null,"4.","Miejsce dostawy:","WSSE Kraków  ul. Prądnicka 76, 31-202 Kraków - dla poz. 1, 2 ,7"]
[{"$nulls":3},"WSSE Oddział Laboratoryjny w Tarnowie  ul. Mościckiego 10,  33-100 Tarnów -  - dla poz. 4, 5"]
[{"$nulls":3},"WSSE Oddział Laboratoryjny w Wadowicach  ul. Teatralna 2, 34-100 Wadowice - dla poz. 3, 6\n"]

{"sheet":"Część 08","index":8,"n_rows":20,"n_cols":10,"rows_kept":20,"merged":[[0,6,0,9],[2,0,2,9],[3,0,3,9],[4,0,4,9],[6,1,8,1],[6,2,8,2],[6,3,8,3],[6,4,6,5],[6,6,8,6],[6,7,8,7],[6,8,8,8],[6,9,8,9],[7,4,8,4],[7,5,8,5],[10,1,10,8],[11,2,11,9],[12,2,12,9],[16,2,16,9],[17,2,17,9],[18,2,18,9]]}
[null,null,{"$f":"'Część 01'!$C$1","v":"AGZ.272.4.2025"},{"$nulls":3},"Załącznik 1A do SWZ"]
[]
["OPIS PRZEDMIOTU ZAMÓWIENIA - KALKULACJA CENY OFERTY"]
[{"$f":"MID(CELL(\"nazwa_pliku\",A1),FIND(\"]\",CELL(\"nazwa_pliku\",A1),1)+1,100)","v":"Część 08"}]
["Mikropłytki MUG/EC"]
[{"$f":"HYPERLINK(\"#'Suma'!A1\",\"wstecz\")","v":"wstecz"}]
[null,"L.p.","Przedmiot zamówienia","Szczegółowy opis","Opis oferowanego produktu",null,"Jednostka miary","Ilość","Cena jednostkowa brutto [zł] **","Wartość brutto [zł] "]
[{"$nulls":4},"Producent*","Nr katalogowy producenta*"]
[]
[null,"1.","Mikropłytki MUG/EC do wykrywania bakterii Escherichia coli w kąpieliskach","• zastosowanie: do wykrywania bakterii Escherichia coli w kąpieliskach, wodach powierzchniowych i ściekach;\n• mikropłytki 96-dołkowe z podłożem MUG/EC;\n• skład podłoża:\n  - trypton - 40,0 g/l,\n  - salicyna - 1,0 g/l,\n  - triton X 100 - 1,0 g/l,\n  - MUG - 0,1 g/l;\n  - pH = 6,9;\n• zestaw zawiera 25 nieprzezroczystych płytek oraz 25 sterylnie zapakowanych taśm do zaklejania płytek.",null,null,"zestaw",1,null,{"$f":"H10*I10","v":{"v":0,"d":"0.00"}}]
[null,"Cena oferty (brutto):",{"$nulls":7},{"$f":"SUM(J10)","v":{"v":0,"d":"0.00"}}]
[null,"*","Należy wpisać nazwę producenta oraz numer katalogowy producenta oferowanego produktu. Niepodanie ww. danych będzie skutkować odrzuceniem oferty, chyba że dane te będą jednoznacznie wynikać z innych dokumentów dołączonych do oferty."]
[null,"**","Zawiera podatek od towarów i usług (VAT) wg obowiązującej stawki oraz koszty wszystkich świadczeń niezbędnych do wykonania zamówienia, w szczególności koszty transportu, ubezpieczenia, opakowania (także kaucjonowanego) itp."]
[]
[null,"Wymagania dodatkowe:"]
[]
[null,"1.","Do dostawy wymagany certyfikat jakości / certyfikat CE /deklaracja zgodności CE lub inny dokument potwierdzający skład w j. polskim lub angielskim w wersji papierowej lub dostępny w formie elektronicznej w miejscu wskazanym przez Wykonawcę (adres strony www). W/w dokument musi zawierać opis kontroli jakości:\n- informację o zastosowanym do sprawdzenia szczepie Escherichia Coli (WDCM 00179), \n- sprawdzenie poziomu tła po zaszczepieniu sterylnym płynem do rozcieńczeń, \n- potwierdzenie średniego poziomu fluorescencji, który musi być conajmniej dwukrotnie silniejszy od pozytywnego poziomu progowego, a współczynnik zmienności jest niższy niż 10 %, \n- wynik sparwdzenia wydajności zawarty w granicach 0,66 do 1,5, współczynnik zmienności musi być mniejszy niz 10 % \n- wynik sprawdzenia odzysku mikroorganizmów po czasie 45-60 min w temperaturze 20-25°C dla rozcieńczalnika musi się zawierać w przedziale ± 30%"]
[null,"2.","Do dostawy wymagana instrukcja w języku polskim w wersji papierowej lub dostępna w formie elektronicznej w miejscu wskazanym przez Wykonawcę (adres strony www)."]
[null,"3.","Okres ważności: min. 12 miesięcy od daty dostawy. "]
[null,"4.","Miejsce dostawy:\n","WSSE Oddział Laboratoryjny w Wadowicach  ul. Teatralna 2,  34-100 Wadowice"]

{"sheet":"Część 09","index":9,"n_rows":23,"n_cols":10,"rows_kept":23,"merged":[[0,6,0,9],[2,0,2,9],[3,0,3,9],[4,0,4,9],[6,1,8,1],[6,2,8,2],[6,3,8,3],[6,4,6,5],[6,6,8,6],[6,7,8,7],[6,8,8,8],[6,9,8,9],[7,4,8,4],[7,5,8,5],[11,1,11,8],[12,2,12,9],[13,2,13,9],[17,2,17,9],[18,2,18,9],[19,2,19,9]]}
[null,null,{"$f":"'Część 01'!$C$1","v":"AGZ.272.4.2025"},{"$nulls":3},"Załącznik 1A do SWZ"]
[]
["OPIS PRZEDMIOTU ZAMÓWIENIA - KALKULACJA CENY OFERTY"]
[{"$f":"MID(CELL(\"nazwa_pliku\",A1),FIND(\"]\",CELL(\"nazwa_pliku\",A1),1)+1,100)","v":"Część 09"}]
["Testy do różnicowania bakterii"]
[{"$f":"HYPERLINK(\"#'Suma'!A1\",\"wstecz\")","v":"wstecz"}]
[null,"L.p.","Przedmiot zamówienia","Szczegółowy opis","Opis oferowanego produktu",null,"Jednostka miary","Ilość","Cena jednostkowa brutto [zł] **","Wartość brutto [zł] "]
[{"$nulls":4},"Producent*","Nr katalogowy producenta*"]
[]
[null,"1.","Test ONPG","• zastosowanie: do diagnostyki mikrobiologicznej - do wykrywania u pałeczek Enterobacteriaceae enzymu betagalaktozydazy; \n• test w postaci paska lub krążka identyfikacyjnego;\n• ilość testu w opakowaniu na wykonanie minimum 50 oznaczeń.",null,null,"op.",2,null,{"$f":"H10*I10","v":{"v":0,"d":"0.00"}}]
[null,"2.","Test na hipuran sodu wraz z odczynnikiem do wywoływania reakcji","• zastosowanie: do diagnostyki mikrobiologicznej - do wykrywania zdolności szczepów bakteryjnych do hydrolizy hipuranu sodu; \n• test w postaci pasków lub krążków identyfikacyjnych;\n• opakowanie zapewni wykonanie minimum 50 oznaczeń.",null,null,"op.",1,null,{"$f":"H11*I11","v":{"v":0,"d":"0.00"}}]
[null,"Cena oferty (brutto):",{"$nulls":7},{"$f":"SUM(J10:J11)","v":{"v":0,"d":"0.00"}}]
[null,"*","Należy wpisać nazwę producenta oraz numer katalogowy producenta oferowanego produktu. Niepodanie ww. danych będzie skutkować odrzuceniem oferty, chyba że dane te będą jednoznacznie wynikać z innych dokumentów dołączonych do oferty."]
[null,"**","Zawiera podatek od towarów i usług (VAT) wg obowiązującej stawki oraz koszty wszystkich świadczeń niezbędnych do wykonania zamówienia, w szczególności koszty transportu, ubezpieczenia, opakowania (także kaucjonowanego) itp."]
[]
[null,"Wymagania dodatkowe:"]
[]
[null,"1.","Do dostawy wymagany certyfikat jakości lub certyfikat CE lub deklaracja zgodności CE w j. polskim lub j. angielskim  w wersji papierowej lub dostępny w formie elektronicznej w miejscu wskazanym przez Wykonawcę (adres strony www)."]
[null,"2.","Do oferty wymagana instrukcja wykonania testu w j. polskim."]
[null,"3.","Do dostarczonego zestawu testów wymagana instrukcja wykonania w j. polskim  w wersji papierowej lub dostępna w formie elektronicznej w miejscu wskazanym przez Wykonawcę (adres strony www)."]
[null,"4.","Okres ważności: min. 10 miesięcy od daty dostawy."]
[null,"5.","Produkty wymienione w tabeli muszą być wyrobem medycznym w rozumieniu ustawą z dn. 07 kwietnia 2022 r. o wyrobach medycznych."]
[null,"6.","Miejsce dostawy: \n","WSSE Kraków  ul. Prądnicka 76, 31-202 Kraków\n"]

{"sheet":"Część 10","index":10,"n_rows":24,"n_cols":10,"rows_kept":24,"merged":[[0,6,0,9],[2,0,2,9],[3,0,3,9],[4,0,4,9],[6,1,8,1],[6,2,8,2],[6,3,8,3],[6,4,6,5],[6,6,8,6],[6,7,8,7],[6,8,8,8],[6,9,8,9],[7,4,8,4],[7,5,8,5],[12,1,12,8],[13,2,13,9],[14,2,14,9],[18,2,18,9],[19,2,19,9]]}
[null,null,{"$f":"'Część 01'!$C$1","v":"AGZ.272.4.2025"},{"$nulls":3},"Załącznik 1A do SWZ"]
[]
["OPIS PRZEDMIOTU ZAMÓWIENIA - KALKULACJA CENY OFERTY"]
[{"$f":"MID(CELL(\"nazwa_pliku\",A1),FIND(\"]\",CELL(\"nazwa_pliku\",A1),1)+1,100)","v":"Część 10"}]
["Zestaw do wykrywania enzymu kwaśnej fosfatazy "]
[{"$f":"HYPERLINK(\"#'Suma'!A1\",\"wstecz\")","v":"wstecz"}]
[null,"L.p.","Przedmiot zamówienia","Szczegółowy opis","Opis oferowanego produktu",null,"Jednostka miary","Ilość","Cena jednostkowa brutto [zł] **","Wartość brutto [zł] "]
[{"$nulls":4},"Producent*","Nr katalogowy producenta*"]
[]
[null,"1.","Zestaw do wykrywania kwaśnej fosfatazy","Odczynnik 1 \n• do wykrywania kwaśnej fosfatazy (do powierdzania obecności Clostridium perfringens)\n• zbuforowany roztwór octanu sodu - 1x10 ml,\n• skład:                                     \n - octan sodu - 0,04 g\n - kwas octowy - 0,03 ml\n - woda destylowana\n\nOdczynnik 2\n• odczynnik barwiący - 6x0,09 g,\n• skład:\n - sól dwusodowa naftylofosforanu - 0,03 g\n - Odczynnik Fast Blue B salt - 0,06 g.\n",null,null,"\n\n\n\n\n\n\n\nzestaw",2,null,{"$f":"H10*I10","v":{"v":0,"d":"0.00"}}]
[null,"2.","Zestaw testowy do wykrywania kwaśnej fosfatazy\n","• do wykrywania kwaśnej fosfatazy (do powierdzania obecności Clostridium perfringens)\nOdczynnik 1 \n• zbuforowany roztwór octanu sodu - 1x10 ml,\n• skład:                                     \n - octan sodu - 0,04 g\n - kwas octowy - 0,03 ml\n - woda destylowana\n\nOdczynnik 2\n• odczynnik barwiący - 6x0,09 g,\n• skład:\n - sól dwusodowa naftylofosforanu - 0,03 g\n - Odczynnik Fast Blue B salt - 0,06 g.\n",null,null,"\n\n\n\n\n\n\n\nzestaw",2,null,{"$f":"H11*I11","v":{"v":0,"d":"0.00"}}]
[null,"3.","Zestaw do wykrywania kwasnej fosfatazy","Odczynnik 1 \n• do wykrywania kwasnej fosfatazy (do powierdzania obecności Clostridium perfringens)\n• zbuforowany roztwór octanu sodu - 1x10 ml,\n• skład:                                     \n - octan sodu - 0,04 g\n - kwas octowy - 0,03 ml\n - woda destylowana\n\nOdczynnik 2\n• odczynnik barwiący - 6x0,09 g,\n• skład:\n - sól dwusodowa naftylofosforanu - 0,03 g\n - Odczynnik Fast Blue B salt - 0,06 g.\n",null,null,"\n\n\n\n\n\n\n\nzestaw",1,null,{"v":0,"d":"0.00"}]
[null,"Cena oferty (brutto):",{"$nulls":7},{"$f":"SUM(J10:J12)","v":{"v":0,"d":"0.00"}}]
[null,"*","Należy wpisać nazwę producenta oraz numer katalogowy producenta oferowanego produktu. Niepodanie ww. danych będzie skutkować odrzuceniem oferty, chyba że dane te będą jednoznacznie wynikać z innych dokumentów dołączonych do oferty."]
[null,"**","Zawiera podatek od towarów i usług (VAT) wg obowiązującej stawki oraz koszty wszystkich świadczeń niezbędnych do wykonania zamówienia, w szczególności koszty transportu, ubezpieczenia, opakowania (także kaucjonowanego) itp."]
[]
[null,"Wymagania dodatkowe:"]
[]
[null,"1.","Do dostawy wymagany certyfikat jakości lub certyfikat CE lub deklaracja zgodności CE w j. polskim lub angielskim w wersji papierowej lub dostępny w formie elektronicznej w miejscu wskazanym przez Wykonawcę (adres strony www)."]
[null,"2.","Do dostawy wymagana instrukcja wykonania testu w j. polskim. w wersji papierowej lub dostępna w formie elektronicznej w miejscu wskazanym przez Wykonawcę (adres strony www)."]
[null,"3.","Okres ważności: min. 6 miesięcy od daty dostawy. "]
[null,"4.","Miejsce dostawy: ","WSSE Kraków  ul. Prądnicka 76, 31-202 Kraków - dla poz. 1\n"]
[{"$nulls":3},"WSSE Oddział Laboratoryjny w Tarnowie  ul. Mościckiego 10,  33-100 Tarnów - dla poz. 2\n"]
[{"$nulls":3},"WSSE Oddział Laboratoryjny w Wadowicach  ul. Teatralna 2, 34-100 Wadowice - dla poz. 3\n"]

{"sheet":"Część 11","index":11,"n_rows":21,"n_cols":10,"rows_kept":21,"merged":[[0,6,0,9],[2,0,2,9],[3,0,3,9],[4,0,4,9],[6,1,8,1],[6,2,8,2],[6,3,8,3],[6,4,6,5],[6,6,8,6],[6,7,8,7],[6,8,8,8],[6,9,8,9],[7,4,8,4],[7,5,8,5],[10,1,10,8],[11,2,11,9],[12,2,12,9],[16,2,16,9],[18,2,18,9]]}
[null,null,{"$f":"'Część 01'!$C$1","v":"AGZ.272.4.2025"},{"$nulls":3},"Załącznik 1A do SWZ"]
[]
["OPIS PRZEDMIOTU ZAMÓWIENIA - KALKULACJA CENY OFERTY"]
[{"$f":"MID(CELL(\"nazwa_pliku\",A1),FIND(\"]\",CELL(\"nazwa_pliku\",A1),1)+1,100)","v":"Część 11"}]
["Testy do wykrywania aminopeptydazy"]
[{"$f":"HYPERLINK(\"#'Suma'!A1\",\"wstecz\")","v":"wstecz"}]
[null,"L.p.","Przedmiot zamówienia","Szczegółowy opis","Opis oferowanego produktu",null,"Jednostka miary","Ilość","Cena jednostkowa brutto [zł] **","Wartość brutto [zł] "]
[{"$nulls":4},"Producent*","Nr katalogowy producenta*"]
[]
[null,"1.","Testy do wykrywania aminopeptydazy","• zastosowanie: szybki test do rozróżniania bakterii Gram-dodatnich i Gram-ujemnych;\n• test wykrywa aminopeptydazę obecną u bakterii Gram-ujemnych;\n• reakcja barwna pojawia się po 10-30 min.\n",null,null,"op. = 50 pasków",1,null,{"$f":"H10*I10","v":{"v":0,"d":"0.00"}}]
[null,"Cena oferty (brutto):",{"$nulls":7},{"$f":"SUM(J10:J10)","v":{"v":0,"d":"0.00"}}]
[null,"*","Należy wpisać nazwę producenta oraz numer katalogowy producenta oferowanego produktu. Niepodanie ww. danych będzie skutkować odrzuceniem oferty, chyba że dane te będą jednoznacznie wynikać z innych dokumentów dołączonych do oferty."]
[null,"**","Zawiera podatek od towarów i usług (VAT) wg obowiązującej stawki oraz koszty wszystkich świadczeń niezbędnych do wykonania zamówienia, w szczególności koszty transportu, ubezpieczenia, opakowania (także kaucjonowanego) itp."]
[]
[null,"Wymagania dodatkowe:"]
[]
[null,"1.","Do dostawy wymagane certyfikat jakości lub inny dokument potwierdzający jakość produktu  w j. polskim lub j. angielskim w wersji papierowej lub dostępny w formie elektronicznej w miejscu wskazanym przez Wykonawcę (adres strony www)."]
[null,"2.","W/W dokument musi zawierać : nazwę produktu, nazwę producenta, numer seryjny oraz wyniki kontroli mikrobiologicznej szczepami odniesienia w kolekcji ATCC lub WDCM."]
[null,"3.","Do dostawy wymagane instrukcje wykonania testu w j. polskim w wersji papierowej lub dostępna w formie elektronicznej w miejscu wskazanym przez Wykonawcę (adres strony www)."]
[null,"4.","Okres ważności: min. 10 miesięcy od daty dostawy. "]
[null,"5.","Miejsce dostawy:  \n","WSSE Kraków  ul. Prądnicka 76, 31-202 Kraków"]

{"sheet":"Część 12","index":12,"n_rows":24,"n_cols":10,"rows_kept":24,"merged":[[0,6,0,9],[2,0,2,9],[3,0,3,9],[4,0,4,9],[6,1,8,1],[6,2,8,2],[6,3,8,3],[6,4,6,5],[6,6,8,6],[6,7,8,7],[6,8,8,8],[6,9,8,9],[7,4,8,4],[7,5,8,5],[13,1,13,8],[14,2,14,9],[15,2,15,9],[19,2,19,9]]}
[null,null,{"$f":"'Część 01'!$C$1","v":"AGZ.272.4.2025"},{"$nulls":3},"Załącznik 1A do SWZ"]
[]
["OPIS PRZEDMIOTU ZAMÓWIENIA - KALKULACJA CENY OFERTY"]
[{"$f":"MID(CELL(\"nazwa_pliku\",A1),FIND(\"]\",CELL(\"nazwa_pliku\",A1),1)+1,100)","v":"Część 12"}]
["Testy lateksowe w kierunku chorobotwórczych pałeczek Escherichia coli"]
[{"$f":"HYPERLINK(\"#'Suma'!A1\",\"wstecz\")","v":"wstecz"}]
[null,"L.p.","Przedmiot zamówienia","Szczegółowy opis","Opis oferowanego produktu",null,"Jednostka miary","Ilość","Cena jednostkowa brutto [zł] **","Wartość brutto [zł] "]
[{"$nulls":4},"Producent*","Nr katalogowy producenta*"]
[]
[null,"1.","LATEKS EPEC opakowanie nr 1\n","• zastosowanie: do badań z użyciem materiału pochodzenia ludzkiego (klinicznego) - do diagnostyki enteropatogennych pałeczek Escherichia coli; \n• zestaw zawiera: \n- odczynnik wieloważny A (dla 026, 055, 0111, 0127, 0142) - 3 buteleczki po 5 ml, \n- odczynnik wieloważny B (dla 086, 0119, 0124, 0125, 0126, 0128) - 3 buteleczki po 5 ml,\n- odczynnik wieloważny C (dla 025, 044, 0114) - 3 buteleczki po 5 ml,\n- lateks kontrolny - 3 buteleczki po 5 ml,\n- płytki szklane z wyznaczonymi polami badań - 4 sztuki,\n- pałeczki z tworzywa sztucznego do mieszania.\n",null,null,"zestaw",2,null,{"$f":"H10*I10","v":{"v":0,"d":"0.00"}}]
[null,"2.","LATEKS EPEC opakowanie nr 2\n","• zastosowanie: do diagnostyki in vitro zakażeń enteropatogennymi pałeczkami Escherichia coli;  \n• zestaw zawiera: \n- odczynniki jednoważne grup:\n026 - 1x2 ml,\n055 - 1x2 ml,\n0111 - 1x2 ml, \n0127 - 1x2 ml, \n0142 - 1x2 ml, \n- wieloważny antygen kontrolny A (dla 026, 055, 0111, 0127, 0142) - 1x1 ml, \n- pałeczki z tworzywa sztucznego do mieszania.\n",null,null,"zestaw",1,null,{"$f":"H11*I11","v":{"v":0,"d":"0.00"}}]
[null,"3.","LATEKS EPEC opakowanie nr 3\n","• zastosowanie: do diagnostyki in vitro zakażeń enteropatogennymi pałeczkami Escherichia coli; \n• zestaw zawiera: \n- odczynniki jednoważne grup: \n086 - 1x2 ml, \n0119 - 1x2 ml, \n0124 - 1x2 ml, \n0125 - 1x2 ml, \n0126 - 1x2 ml, \n0128 - 1x2 ml, \n- wieloważny antygen kontrolny B (dla 086, 0119, 0124, 0125, 0126, 0128) - 1x1 ml, \n- pałeczki z tworzywa sztucznego do mieszania.\n",null,null,"zestaw",1,null,{"v":0,"d":"0.00"}]
[null,"4.","LATEKS EPEC opakowanie nr 4\n","• zastosowanie: do diagnostyki in vitro zakażeń enteropatogennymi pałeczkami Escherichia coli; \n• zestaw zawiera: \n- odczynniki jednoważne grup: \n025 - 1x2 ml, \n044 - 1x2 ml, \n0114 - 1x2 ml, \n- wieloważny antygen kontrolny C (dla 025, 044, 0114) - 1x1 ml, \n- pałeczki z tworzywa sztucznego do mieszania.\n",null,null,"zestaw",1,null,{"v":0,"d":"0.00"}]
[null,"Cena oferty (brutto):",{"$nulls":7},{"$f":"SUM(J10:J13)","v":{"v":0,"d":"0.00"}}]
[null,"*","Należy wpisać nazwę producenta oraz numer katalogowy producenta oferowanego produktu. Niepodanie ww. danych będzie skutkować odrzuceniem oferty, chyba że dane te będą jednoznacznie wynikać z innych dokumentów dołączonych do oferty."]
[null,"**","Zawiera podatek od towarów i usług (VAT) wg obowiązującej stawki oraz koszty wszystkich świadczeń niezbędnych do wykonania zamówienia, w szczególności koszty transportu, ubezpieczenia, opakowania (także kaucjonowanego) itp."]
[]
[null,"Wymagania dodatkowe:"]
[]
[null,"1.","Do dostawy wymagane certyfikaty jakości lub inne dokumenty potwierdzające jakość produktu w j. polskim lub j. angielskim w wersji papierowej lub dostępne w formie elektronicznej w miejscu wskazanym przez Wykonawcę (adres strony www)."]
[null,"2.","Do dostawy  wymagane instrukcje wykonania w j. polskim w wersji papierowej dostępne w formie elektronicznej w miejscu wskazanym przez Wykonawcę (adres strony www)."]
[null,"3.","Okres ważności: min. 12 miesięcy od daty dostawy."]
[null,"4.","Produkty wymienione w tabeli musza być wyrobem medycznym w rozumienu ustawy z dn. 07 kwietnia 2022 r.o wyrobach medycznych."]
[null,"5.","Miejsce dostawy:","WSSE Kraków ul. Prądnicka 76, 31-202 Kraków"]

{"sheet":"Część 13","index":13,"n_rows":41,"n_cols":10,"rows_kept":41,"merged":[[0,6,0,9],[2,0,2,9],[3,0,3,9],[4,0,4,9],[6,1,8,1],[6,2,8,2],[6,3,8,3],[6,4,6,5],[6,6,8,6],[6,7,8,7],[6,8,8,8],[6,9,8,9],[7,4,8,4],[7,5,8,5],[27,1,27,8],[28,2,28,9],[29,2,29,9],[33,2,33,9],[34,2,34,9],[35,2,35,9],[36,2,36,9]]}
[null,null,{"$f":"'Część 01'!$C$1","v":"AGZ.272.4.2025"},{"$nulls":3},"Załącznik 1A do SWZ"]
[]
["OPIS PRZEDMIOTU ZAMÓWIENIA - KALKULACJA CENY OFERTY"]
[{"$f":"MID(CELL(\"nazwa_pliku\",A1),FIND(\"]\",CELL(\"nazwa_pliku\",A1),1)+1,100)","v":"Część 13"}]
["Testy lateksowe w kierunku pałeczek Salmonella"]
[{"$f":"HYPERLINK(\"#'Suma'!A1\",\"wstecz\")","v":"wstecz"}]
[null,"L.p.","Przedmiot zamówienia","Szczegółowy opis","Opis oferowanego produktu",null,"Jednostka miary","Ilość","Cena jednostkowa brutto [zł] **","Wartość brutto [zł] "]
[{"$nulls":4},"Producent*","Nr katalogowy producenta*"]
[]
[null,"1.","ANTYGEN KONTROLNY\nSalmonella\n \n\n","• zastosowanie: do wykonania testu lateksowego w kierunku Salmonella grupy B-E i G;\n• buteleczka o pojemności minimum 4 ml, z zakraplaczem dającym kroplę 25- 27 mikrolitra; ",null,null,"szt.",1,null,{"$f":"H10*I10","v":{"v":0,"d":"0.00"}}]
[null,"2.","ANTYGEN KONTROLNY\nSalmonella\n \n\n","• zastosowanie: do wykonania testu lateksowego w kierunku Salmonella grupy B-E i G;\n• buteleczka o pojemności minimum 4 ml, z zakraplaczem dającym kroplę 25- 27 mikrolitra.",null,null,"szt.",1,null,{"$f":"H11*I11","v":{"v":0,"d":"0.00"}}]
[null,"3.","LATEKS KONTROLNY\nSalmonella\n \n\n","• zastosowanie: do wykonania testu lateksowego w kierunku Salmonella spp.;\n• buteleczka o pojemności minimum 8 ml, z zakraplaczem dającym kroplę 25- 27 mikrolitra.",null,null,"szt.",2,null,{"$f":"H12*I12","v":{"v":0,"d":"0.00"}}]
[null,"4.","LATEKS KONTROLNY\nSalmonella\n \n\n","• zastosowanie: do wykonania testu lateksowego w kierunku Salmonella spp.;\n• buteleczka o pojemności minimum 8 ml, z zakraplaczem dającym kroplę 25- 27 mikrolitra.",null,null,"szt.",1,null,{"v":0,"d":"0.00"}]
[null,"5.","LATEKS Salmonella odczynnik wieloważny\n","• zastosowanie: do wykonania testu lateksowego w kierunku Salmonella spp.\n• zestaw zawiera: \n- odczynnik wieloważny grupy B-E i G w buteleczkach o pojemności 8 ml,\n- buteleczka z zakraplaczem, który daje kroplę 25 - 27 mikrolitra;\n• ilość odczynnika w buteleczce ma zapewnić wykonanie około 300 oznaczeń.",null,null,"szt.",60,null,{"v":0,"d":"0.00"}]
[null,"6.","LATEKS Salmonella odczynnik wieloważny\n","• zastosowanie: do wykonania testu lateksowego w kierunku Salmonella spp.\n• zestaw zawiera: \n- odczynnik wieloważny grupy B-E i G w buteleczkach o pojemności 8 ml,\n- buteleczka z zakraplaczem, który daje kroplę 25 - 27 mikrolitra;\n• ilość odczynnika w buteleczce ma zapewnić wykonanie około 300 oznaczeń.",null,null,"szt.",195,null,{"v":0,"d":"0.00"}]
[null,"7.","Odczynnik lateksowy Salmonella grupy B","• zastosowanie: do diagnostyki Salmonella grupy B;\n• buteleczka o pojemności minimum 8 ml, z zakraplaczem dającym kroplę 25- 27 mikrolitra",null,null,"szt.",2,null,{"v":0,"d":"0.00"}]
[null,"8.","Odczynnik lateksowy Salmonella grupy B\n","• zastosowanie: do diagnostyki Salmonella grupy B;\n• buteleczka o pojemności minimum 8 ml, z zakraplaczem dającym kroplę 25- 27 mikrolitra",null,null,"szt.",19,null,{"v":0,"d":"0.00"}]
[null,"9.","Odczynnik lateksowy Salmonella grupy C1","• zastosowanie: do diagnostyki Salmonella grupy C1;\n• buteleczka o pojemności minimum 8 ml, z zakraplaczem dającym kroplę 25- 27 mikrolitra\n",null,null,"szt.",2,null,{"v":0,"d":"0.00"}]
[null,"10.","Odczynnik lateksowy\nSalmonella grupy C1\n ","• zastosowanie: do diagnostyki Salmonella grupy C1;\n• buteleczka o pojemności minimum 8 ml, z zakraplaczem dającym kroplę 25- 27 mikrolitra.\n",null,null,"szt.",19,null,{"v":0,"d":"0.00"}]
[null,"11.","Odczynnik lateksowy Salmonella grupy C2","• zastosowanie: do diagnostyki Salmonella grupy C2;\n• buteleczka o pojemności minimum 8 ml, z zakraplaczem dającym kroplę 25- 27 mikrolitra.",null,null,"szt.",2,null,{"v":0,"d":"0.00"}]
[null,"12.","Odczynnik lateksowy Salmonella grupy C2\n","• zastosowanie: do diagnostyki Salmonella grupy C2;\n• buteleczka o pojemności minimum 8 ml, z zakraplaczem dającym kroplę 25- 27 mikrolitra.",null,null,"szt.",19,null,{"v":0,"d":"0.00"}]
[null,"13.","Odczynnik lateksowy Salmonella grupy D","• zastosowanie: do diagnostyki Salmonella grupy D;\n• buteleczka o pojemności minimum 8 ml, z zakraplaczem dającym kroplę 25- 27 mikrolitra.",null,null,"szt.",2,null,{"v":0,"d":"0.00"}]
[null,"14.","Odczynnik lateksowy Salmonella grupy D\n","• zastosowanie: do diagnostyki Salmonella grupy D;\n• buteleczka o pojemności minimum 8 ml, z zakraplaczem dającym kroplę 25- 27 mikrolitra.",null,null,"szt.",19,null,{"v":0,"d":"0.00"}]
[null,"15.","Odczynnik lateksowy Salmonella grupy E","• zastosowanie: do diagnostyki Salmonella grupy E;\n• buteleczka o pojemności minimum 8 ml, z zakraplaczem dającym kroplę 25- 27 mikrolitra.",null,null,"szt.",2,null,{"v":0,"d":"0.00"}]
[null,"16.","Odczynnik lateksowy Salmonella grupy E\n","• zastosowanie: do diagnostyki Salmonella grupy E;\n• buteleczka o pojemności minimum 8 ml, z zakraplaczem dającym kroplę 25- 27 mikrolitra.",null,null,"szt.",19,null,{"v":0,"d":"0.00"}]
[null,"17.","Odczynnik lateksowy Salmonella grupy G","• zastosowanie: do diagnostyki Salmonella grupy G;\n• buteleczka o pojemności minimum 8 ml, z zakraplaczem dającym kroplę 25- 27 mikrolitra.",null,null,"szt.",2,null,{"v":0,"d":"0.00"}]
[null,"18.","Odczynnik lateksowy Salmonella grupy G\n","• zastosowanie: do diagnostyki Salmonella grupy G;\n• buteleczka o pojemności minimum 8 ml, z zakraplaczem dającym kroplę 25- 27 mikrolitra.",null,null,"szt",19,null,{"v":0,"d":"0.00"}]
[null,"Cena oferty (brutto):",{"$nulls":7},{"$f":"SUM(J10:J27)","v":{"v":0,"d":"0.00"}}]
[null,"*","Należy wpisać nazwę producenta oraz numer katalogowy producenta oferowanego produktu. Niepodanie ww. danych będzie skutkować odrzuceniem oferty, chyba że dane te będą jednoznacznie wynikać z innych dokumentów dołączonych do oferty."]
[null,"**","Zawiera podatek od towarów i usług (VAT) wg obowiązującej stawki oraz koszty wszystkich świadczeń niezbędnych do wykonania zamówienia, w szczególności koszty transportu, ubezpieczenia, opakowania (także kaucjonowanego) itp."]
[]
[null,"Wymagania dodatkowe:"]
[]
[null,"1.","Do oferty wymagane instrukcje wykanania w j. polskim."]
[null,"2.","Do dostawy wymagane certyfikaty jakości lub inne dokumenty potwierdzające jakość produktu w j. polskim lub j. angielskim w wersji papierowej lub dostępne w formie elektronicznej w miejscu wskazanym przez Wykonawcę (adres strony www)."]
[null,"3.","Do dostawy  wymagane instrukcje wykonania w j. polskim w wersji papierowej lub dostępne w formie elektronicznej w miejscu wskazanym przez Wykonawcę (adres strony www)."]
[null,"4.","Lateks kontrolny, antygen kontrolny i odczynnik lateksowy wieloważny w jednej dostawie muszą być z tej samej serii."]
[null,"5.","Okres ważności: min. 12 miesięcy od daty dostawy."]
[null,"6.","Produkty wymienione w tabeli muszą być wyrobem medycznym w rozumieniu ustawy z dn. 07 kwietnia 2022 r. o wyrobach medycznych"]
[null,"7.","Miejsce dostawy: \n","WSSE Kraków  ul. Prądnicka 76, 31-202 Kraków - poz. 1, 4, 6, 8, 10, 12, 14, 16, 18\n"]
[{"$nulls":3},"WSSE Oddział Laboratoryjny w Tarnowie  ul. Mościckiego 10,  33-100 Tarnów - dla poz. 2, 3, 5, 7, 9, 11, 13, 15, 17\n"]

{"sheet":"Część 14","index":14,"n_rows":25,"n_cols":10,"rows_kept":25,"merged":[[0,6,0,9],[2,0,2,9],[3,0,3,9],[4,0,4,9],[6,1,8,1],[6,2,8,2],[6,3,8,3],[6,4,6,5],[6,6,8,6],[6,7,8,7],[6,8,8,8],[6,9,8,9],[7,4,8,4],[7,5,8,5],[12,1,12,8],[13,2,13,9],[14,2,14,9],[18,2,18,9],[19,2,19,9],[20,2,20,9],[21,2,21,9]]}
[null,null,{"$f":"'Część 01'!$C$1","v":"AGZ.272.4.2025"},{"$nulls":3},"Załącznik 1A do SWZ"]
[]
["OPIS PRZEDMIOTU ZAMÓWIENIA - KALKULACJA CENY OFERTY"]
[{"$f":"MID(CELL(\"nazwa_pliku\",A1),FIND(\"]\",CELL(\"nazwa_pliku\",A1),1)+1,100)","v":"Część 14"}]
["Testy lateksowe w kierunku Shigela sonnei"]
[{"$f":"HYPERLINK(\"#'Suma'!A1\",\"wstecz\")","v":"wstecz"}]
[null,"L.p.","Przedmiot zamówienia","Szczegółowy opis","Opis oferowanego produktu",null,"Jednostka miary","Ilość","Cena jednostkowa brutto [zł] **","Wartość brutto [zł] "]
[{"$nulls":4},"Producent*","Nr katalogowy producenta*"]
[]
[null,"1.","ANTYGEN KONTROLNY Shigella sonnei \n\n","• zastosowanie: do wykonania testu lateksowego w kierunku Shigella sonnei;\n• odczynnik lateksowy;\n• buteleczka o pojemności minimum 4 ml,  z zakraplaczem dającym kroplę 25- 27 mikrolitra.",null,null,"szt.",1,null,{"$f":"H10*I10","v":{"v":0,"d":"0.00"}}]
[null,"2.","LATEKS KONTROLNY\nShigella sonnei \n","• zastosowanie: do wykonania testu lateksowego w kierunku Shigella sonnei;\n• odczynnik lateksowy;\n• buteleczka o pojemności minimum 8 ml, z zakraplaczem dającym kroplę 25- 27 mikrolitra.",null,null,"szt.",1,null,{"$f":"H11*I11","v":{"v":0,"d":"0.00"}}]
[null,"3.","LATEKS SHIGELLA SONNEI\n","• zastosowanie: do wykonania testu lateksowego w kierunku Shigella sonnei;\n• odczynnik lateksowy;\n• buteleczka o pojemności minimum 8 ml, z zakraplaczem dającym kroplę 25- 27 mikrolitra.",null,null,"szt.",15,null,{"v":0,"d":"0.00"}]
[null,"Cena oferty (brutto):",{"$nulls":7},{"$f":"SUM(J10:J12)","v":{"v":0,"d":"0.00"}}]
[null,"*","Należy wpisać nazwę producenta oraz numer katalogowy producenta oferowanego produktu. Niepodanie ww. danych będzie skutkować odrzuceniem oferty, chyba że dane te będą jednoznacznie wynikać z innych dokumentów dołączonych do oferty."]
[null,"**","Zawiera podatek od towarów i usług (VAT) wg obowiązującej stawki oraz koszty wszystkich świadczeń niezbędnych do wykonania zamówienia, w szczególności koszty transportu, ubezpieczenia, opakowania (także kaucjonowanego) itp."]
[]
[null,"Wymagania dodatkowe:"]
[]
[null,"1.","Do oferty wymagane instrukcje wykonania w j. polskim."]
[null,"2.","Do dostawy wymagane certyfikaty jakości lub inne dokumenty potwierdzające jakość produktu w j. polskim lub j. angielskim w wersji papierowej lub dostępne w formie elektronicznej w miejscu wskazanym przez Wykonawcę (adres strony www)."]
[null,"3.","Do dostawy  wymagane instrukcje wykonania w j. polskim w wersji papierowej lub dostępne w formie elektronicznej w miejscu wskazanym przez Wykonawcę (adres strony www)."]
[null,"4.","Produkty wymienione w tabeli w jednej dostawie muszą być z tej samej serii."]
[null,"5.","Okres ważności: min. 12 miesięcy od daty dostawy."]
[null,"6.","Produkty wymienione w tabeli muszą być wyrobem medycznym w rozumieniu ustawy z dn. 07 kwietnia 2022 r. o wyrobach medycznych."]
[null,"7.","Miejsce dostawy:","WSSE Oddział Laboratoryjny w Tarnowie ul. Mościckiego 10, 33-100 Tarnów"]

{"sheet":"Część 15","index":15,"n_rows":25,"n_cols":10,"rows_kept":25,"merged":[[0,6,0,9],[2,0,2,9],[3,0,3,9],[4,0,4,9],[6,1,8,1],[6,2,8,2],[6,3,8,3],[6,4,6,5],[6,6,8,6],[6,7,8,7],[6,8,8,8],[6,9,8,9],[7,4,8,4],[7,5,8,5],[12,1,12,8],[13,2,13,9],[14,2,14,9],[18,2,18,9],[19,2,19,9]]}
[null,null,{"$f":"'Część 01'!$C$1","v":"AGZ.272.4.2025"},{"$nulls":3},"Załącznik 1A do SWZ"]
[]
["OPIS PRZEDMIOTU ZAMÓWIENIA - KALKULACJA CENY OFERTY"]
[{"$f":"MID(CELL(\"nazwa_pliku\",A1),FIND(\"]\",CELL(\"nazwa_pliku\",A1),1)+1,100)","v":"Część 15"}]
["Test lateksowy do potwierdzenia Legionella sp."]
[{"$f":"HYPERLINK(\"#'Suma'!A1\",\"wstecz\")","v":"wstecz"}]
[null,"L.p.","Przedmiot zamówienia","Szczegółowy opis","Opis oferowanego produktu",null,"Jednostka miary","Ilość","Cena jednostkowa brutto [zł] **","Wartość brutto [zł] "]
[{"$nulls":4},"Producent*","Nr katalogowy producenta*"]
[]
[null,"1.","Test lateksowy do potwierdzenia Legionella sp.","• lateksowy test pozwalający na  rozróżnienie Legionella pneumophila serogrupy 1 i serogrup 2-14 oraz innych gatunków Legionella z próbek środowiskowych (próbki wody).",null,null,"opak.",5,null,{"$f":"H10*I10","v":{"v":0,"d":"0.00"}}]
[null,"2.","Test lateksowy do potwierdzenia Legionella sp.","• lateksowy test pozwalający na  rozróżnienie Legionella pneumophila serogrupy 1 i serogrup 2-14 oraz innych gatunków Legionella z próbek środowiskowych (próbki wody).",null,null,"opak.",2,null,{"$f":"H11*I11","v":{"v":0,"d":"0.00"}}]
[null,"3.","Test lateksowy do potwierdzenia Legionella sp.","• lateksowy test pozwalający na  rozróżnienie Legionella pneumophila serogrupy 1 i serogrup 2-14 oraz innych gatunków Legionella z próbek środowiskowych (próbki wody).",null,null,"opak.",2,null,{"v":0,"d":"0.00"}]
[null,"Cena oferty (brutto):",{"$nulls":7},{"$f":"SUM(J10:J12)","v":{"v":0,"d":"0.00"}}]
[null,"*","Należy wpisać nazwę producenta oraz numer katalogowy producenta oferowanego produktu. Niepodanie ww. danych będzie skutkować odrzuceniem oferty, chyba że dane te będą jednoznacznie wynikać z innych dokumentów dołączonych do oferty."]
[null,"**","Zawiera podatek od towarów i usług (VAT) wg obowiązującej stawki oraz koszty wszystkich świadczeń niezbędnych do wykonania zamówienia, w szczególności koszty transportu, ubezpieczenia, opakowania (także kaucjonowanego) itp."]
[]
[null,"Wymagania dodatkowe:"]
[]
[null,"1.","Do dostawy wymagany certyfikat jakości lub certyfikat CE lub deklaracja zgodności CE w j. polskim lub angielskim w wersji papierowej lub dostępny w formie elektronicznej w miejscu wskazanym przez Wykonawcę (adres strony www)."]
[null,"2.","W/w certyfikat powiniem zawierać nazwę producenta, nazwę produktu, numer seryjny , datę ważności oraz potwierdzenie kontroli jakości z użyciem szczepów wzorcowych z kolekcji ATTC lub WDCM"]
[null,"3.","Do dostawy wymagane instrukcje wykonania w j. polskim w wersji papierowej lub dostępne w formie elektronicznej w miejscu wskazanym przez Wykonawcę (adres strony www)."]
[null,"4.","Okres ważności: min. 10 miesięcy od daty dostawy. "]
[null,"5.","Miejsce dostawy:    ","WSSE Kraków  ul. Prądnicka 76, 31-202 Kraków - dla poz. 1"]
[{"$nulls":3},"WSSE Oddział Laboratoryjny w Tarnowie  ul. Mościckiego 10,  33-100 Tarnów - dla poz. 2   "]
[{"$nulls":3},"WSSE Oddział Laboratoryjny w Wadowicach  ul. Teatralna 2,  34-100 Wadowice - dla poz. 3"]

{"sheet":"Część 16","index":16,"n_rows":25,"n_cols":10,"rows_kept":25,"merged":[[0,6,0,9],[2,0,2,9],[3,0,3,9],[4,0,4,9],[6,1,8,1],[6,2,8,2],[6,3,8,3],[6,4,6,5],[6,6,8,6],[6,7,8,7],[6,8,8,8],[6,9,8,9],[7,4,8,4],[7,5,8,5],[11,1,11,8],[12,2,12,9],[13,2,13,9],[14,2,14,9],[20,2,20,9],[21,2,21,9],[22,2,22,9]]}
[null,null,{"$f":"'Część 01'!$C$1","v":"AGZ.272.4.2025"},{"$nulls":3},"Załącznik 1A do SWZ"]
[]
["OPIS PRZEDMIOTU ZAMÓWIENIA - KALKULACJA CENY OFERTY"]
[{"$f":"MID(CELL(\"nazwa_pliku\",A1),FIND(\"]\",CELL(\"nazwa_pliku\",A1),1)+1,100)","v":"Część 16"}]
["Testy do diagnostyki w kierunku grypy typ A, grypy typ B, wirusa RSV i wirusa SARS-CoV-2"]
[{"$f":"HYPERLINK(\"#'Suma'!A1\",\"wstecz\")","v":"wstecz"}]
[null,"L.p.","Przedmiot zamówienia","Szczegółowy opis","Opis oferowanego produktu",null,"Jednostka miary","Ilość","Cena jednostkowa brutto [zł] **","Wartość brutto [zł] "]
[{"$nulls":4},"Producent*","Nr katalogowy producenta*"]
[]
[null,"1.","Testy do jednoczesnej diagnostyki w kierunku grypy typ A, grypy typ B, wirusa RSV ","np producent: Viasure\nnr kat. VS-ABR112LE\nlub produkt równoważny***\ntesty genetyczne jakościowe wykonywane metodą real-time RT-PCR;\n• test jakościowy, multipleksowy do jednoczesnego wykrywania i różnicowania genów M1 wirusa grypy A, M1 wirusa grypy B i genu N wirusa RSV - test posiada certyfikat CE-IVD do diagnostyki in vitro; \n• test kompatybilny z urządzeniem Bioer oraz Rotor-Gene;\n• test dostarczany w formie zliofilizowanej, rozporcjowany do stripów po 8 probówek zamkniętych fabrycznie folią; \n• test zawiera osobno pakowane zatyczki do zamknięcia probówek; \n• test zawiera wszystkie niezbędne składniki: zliofilizowany mastermiks, bufor do rehydratacji, kontrole pozytywną, kontrole negatywną, wodę wolną od DNaz i RNaz oraz kontrolę ekstrakcji; \n•zliofilizowany mastermiks zawiera następujące składniki: \n- polimerazę i odwrotną transkryptazę,\n- specyficzne sondy i primery, \n- dNTP.\n• całkowita objętość reakcyjna: 20 ul;\n• czułość analityczna nie gorsza niż 10 kopii RNA/reakcję.",null,null,"op. = \n96 ozn. ",2,{"v":0,"d":"0.00"},{"$f":"H10*I10","v":{"v":0,"d":"0.00"}}]
[null,"2.","Test do wykrywania grypy H1N1 i H3N2 m.in. z wymazów z gardła"," test multipleksowy do jednoczesnego wykrywania i różnicowania grypy A H1N1 pdm09 i H3N2;\n• test posiada certyfikat CE-IVD do diagnostyki in vitro;  \n• test kompatybilny z urządzeniem Bioer oraz Rotor-Gene ;\n• test dostarczany C11 formie zliofilizowanej, rozporcjowany do stripów po 8 probówek zamkniętych fabrycznie folią; \n• test zawiera osobno pakowane zatyczki do zamknięcia probówek;\n• test zawiera wszystkie niezbędne składniki: zliofilizowany mastermiks, bufor do rehydratacji, kontrole pozytywną, kontrole negatywną, wodę wolną od DNaz i RNaz oraz kontrolę ekstrakcji; \n•  zliofilizowany mastermiks zawiera następujące składniki: \n- polimerazę i odwrotną transkryptazę, \n- specyficzne sondy i primery, \n- dNTP, \n• całkowita objętość reakcyjna: 20 µl;   \n• czułość analityczna nie gorsza niż 10 kopii RNA/reakcję.\n \n                                                                                                                                                                                ",null,null,"op. = \n96 ozn. ",1,null,{"$f":"H11*I11","v":{"v":0,"d":"0.00"}}]
[null,"Cena oferty (brutto):",{"$nulls":7},{"$f":"SUM(J10:J11)","v":{"v":0,"d":"0.00"}}]
[null,"*","Należy wpisać nazwę producenta oraz numer katalogowy producenta oferowanego produktu. Niepodanie ww. danych będzie skutkować odrzuceniem oferty, chyba że dane te będą jednoznacznie wynikać z innych dokumentów dołączonych do oferty."]
[null,"**","Zawiera podatek od towarów i usług (VAT) wg obowiązującej stawki oraz koszty wszystkich świadczeń niezbędnych do wykonania zamówienia, w szczególności koszty transportu, ubezpieczenia, opakowania (także kaucjonowanego) itp."]
[null,"***","Wykonawca oferujący produkt innego producenta, o innym numerze katalogowym niż wskazany jako przykład zobowiązany jest dostarczyć dokumenty potwierdzające równoważność oferowanego produktu z wymaganiami przedstawionymi w tabeli w języku polskim lub angielskim. "]
[]
[null,"Wymagania dodatkowe:"]
[]
[null,"1.","Do oferty wymagany certyfikat jakości lub certyfikat CE lub deklaracja zgodności CE w j. polskim lub j. angielskim"]
[null,"2.","Do oferty wymagana instrukcja wykonania testu w j.polskim."]
[null,"3.","Do dostawy wymagany certyfikat jakości i lub certyfikat CE lub deklaracja zgodności CE w j. polskim lub j. angielskim w wersji papierowej lub dostępny w formie elektronicznej w miejscu wskazanym przez Wykonawcę (adres strony www)."]
[null,"4.","Do każdego dostarczonego zestawu testów wymagana instrukcja wykonania testu w j. polskim. w wersji papierowej lub dostępna w formie elektronicznej w miejscu wskazanym przez Wykonawcę (adres strony www)."]
[null,"5.","Produkt musi być wyrobem medycznym lub wyrobem do diagnostyki IN VITRO w rozumieniu ustawy z dn. 07 kwietnia 2022 r. o wyrobach medycznych"]
[null,"6.","Okres ważnosci: min. 12 miesięcy od daty dostawy."]
[null,"7.","Miejsce dostawy:","WSSE w Krakowie  ul. Prądnicka 76, 31-202 Kraków\n"]

{"sheet":"Część 17","index":17,"n_rows":25,"n_cols":10,"rows_kept":25,"merged":[[0,6,0,9],[2,0,2,9],[3,0,3,9],[4,0,4,9],[6,1,8,1],[6,2,8,2],[6,3,8,3],[6,4,6,5],[6,6,8,6],[6,7,8,7],[6,8,8,8],[6,9,8,9],[7,4,8,4],[7,5,8,5],[11,1,11,8],[12,2,12,9],[13,2,13,9],[14,2,14,9],[20,2,20,9],[21,2,21,9]]}
[null,null,{"$f":"'Część 01'!$C$1","v":"AGZ.272.4.2025"},{"$nulls":3},"Załącznik 1A do SWZ"]
[]
["OPIS PRZEDMIOTU ZAMÓWIENIA - KALKULACJA CENY OFERTY"]
[{"$f":"MID(CELL(\"nazwa_pliku\",A1),FIND(\"]\",CELL(\"nazwa_pliku\",A1),1)+1,100)","v":"Część 17"}]
["Zestawy testów do automatycznej izolacji kwasów nukleinowych"]
[{"$f":"HYPERLINK(\"#'Suma'!A1\",\"wstecz\")","v":"wstecz"}]
[null,"L.p.","Przedmiot zamówienia","Szczegółowy opis","Opis oferowanego produktu",null,"Jednostka miary","Ilość","Cena jednostkowa brutto [zł] **","Wartość brutto [zł] "]
[{"$nulls":4},"Producent*","Nr katalogowy producenta*"]
[]
[null,"1.","Zestawy testów do automatycznej izolacji kwasów nukleinowych\n","np producent: GeneProof \nnr kat CBNA201A/096 \nlub produkt równoważny***\n• przeznaczony do automatycznej izolacji DNA/RNA z różnych materiałów: krew,surowica, osocze, mocz, płyn mózgowo-rdzeniowy, aspirat, wymaz, plwocina;  \n• Testy muszą być zwalidowane przez producenta na aparat croBEE NA16 Nucleic Acid Exstraction System Plus, potwierdzone w instrukcji producenta.",null,null,"op. = \n96ozn",2,null,{"$f":"H10*I10","v":{"v":0,"d":"0.00"}}]
[null,"2.","Zestaw do ekstrakcji kwasu nukleinowego ","np. producent: TANBead \nnr kat. M6SCS46 \nlub produkt równoważy***\n• 1 kartidż =  max. 16 oznaczeń (próbek)                                                                                \n• przeznaczony do automatycznej izolacji DNA z kału\n• zawiera wszystkie niezbędne odczynniki do wykonania izolacji\n• testy zwalidowane przez producenta na aparat Maelstrom 4800, potwierdzone w instrukcji producenta.\n",null,null,"zestaw = 96 oznaczeń",1,null,{"$f":"H11*I11","v":{"v":0,"d":"0.00"}}]
[null,"Cena oferty (brutto):",{"$nulls":7},{"$f":"SUM(J10:J11)","v":{"v":0,"d":"0.00"}}]
[null,"*","Należy wpisać nazwę producenta oraz numer katalogowy producenta oferowanego produktu. Niepodanie ww. danych będzie skutkować odrzuceniem oferty, chyba że dane te będą jednoznacznie wynikać z innych dokumentów dołączonych do oferty."]
[null,"**","Zawiera podatek od towarów i usług (VAT) wg obowiązującej stawki oraz koszty wszystkich świadczeń niezbędnych do wykonania zamówienia, w szczególności koszty transportu, ubezpieczenia, opakowania (także kaucjonowanego) itp."]
[null,"***","Wykonawca oferujący produkt innego producenta, o innym numerze katalogowym niż wskazany jako przykład zobowiązany jest dostarczyć dokumenty potwierdzające równoważność oferowanego produktu z wymaganiami przedstawionymi w tabeli w języku polskim lub angielskim. Wymienione dokumenty nie muszą potwierdzać zastosowania odczynnika."]
[]
[null,"Wymagania dodatkowe:"]
[]
[null,"1.","Do oferty wymagany certyfikat jakości lub certyfikat CE lub deklaracja zgodności CE w j. polskim lub j. angielskim"]
[null,"2.","Do oferty wymagana instrukcja wykonania testu w j.polskim."]
[null,"3.","Do dostawy wymagany certyfikat jakości i lub certyfikat CE lub deklaracja zgodności CE w j. polskim lub j. angielskim w wersji papierowej lub dostępny w formie elektronicznej w miejscu wskazanym przez Wykonawcę (adres strony www)."]
[null,"4.","Do każdego dostarczonego zestawu testów wymagana instrukcja wykonania testu w j. polskim. w wersji papierowej lub dostępna w formie elektronicznej w miejscu wskazanym przez Wykonawcę (adres strony www)."]
[null,"5.","Okres ważności: min. 9 miesięcy od daty dostawy."]
[null,"6.","Produkt wymieniony w tabeli musi być wyrobem medycznym w rozumieniu ustawy z dn. 07 kwietnia 2022 r.o wyrobach medycznych."]
[null,"7.","Miejsce dostawy: \n","WSSE w Krakowie  ul. Prądnicka 76, 31-202 Kraków"]

{"sheet":"Część 18","index":18,"n_rows":23,"n_cols":10,"rows_kept":23,"merged":[[0,6,0,9],[2,0,2,9],[3,0,3,9],[4,0,4,9],[6,1,8,1],[6,2,8,2],[6,3,8,3],[6,4,6,5],[6,6,8,6],[6,7,8,7],[6,8,8,8],[6,9,8,9],[7,4,8,4],[7,5,8,5],[10,1,10,8],[11,2,11,9],[12,2,12,9],[13,2,13,9],[18,2,18,9],[19,2,19,9]]}
[null,null,{"$f":"'Część 01'!$C$1","v":"AGZ.272.4.2025"},{"$nulls":3},"Załącznik 1A do SWZ"]
[]
["OPIS PRZEDMIOTU ZAMÓWIENIA - KALKULACJA CENY OFERTY"]
[{"$f":"MID(CELL(\"nazwa_pliku\",A1),FIND(\"]\",CELL(\"nazwa_pliku\",A1),1)+1,100)","v":"Część 18"}]
["Testy diagnostyczne do oznaczania rota i adenowirusa w próbkach kału"]
[{"$f":"HYPERLINK(\"#'Suma'!A1\",\"wstecz\")","v":"wstecz"}]
[null,"L.p.","Przedmiot zamówienia","Szczegółowy opis","Opis oferowanego produktu",null,"Jednostka miary***","Ilość***","Cena jednostkowa brutto [zł] **","Wartość brutto [zł] "]
[{"$nulls":4},"Producent*","Nr katalogowy producenta*"]
[]
[null,"1.","Szybki test do oznaczania rotawirusa i adenowirusa w próbkach kału.\n\n","• zastosowanie: test immunochromatograficzny  do jednoczesnego wykrywania antygenów wirusów Rota i Adeno w próbkach kału;                         • test przeznaczony do wykonania analiz w próbkach stałych i płynnych;                                          • w obszarze linii testowych membrana opłaszczona monoklonalnymi przeciwciałami przeciwko rota i adenowirusom w tym samym oknie testowym;         \n• w każdej kasecie testowej zawarta kontrola przebiegu reakcji;                                                  \n• wykonanie analizy nie wymaga dozowania odczynników;                                                        \n• wykonanie analizy obejmuje inkubację próbki         w temperaturze pokojowej;                                    \n•\n wykonanie analizy obejmuje wizualny odczyt wyniku;\n• pakowanie: zestaw zawiera paski reakcyjne i pipety  wystarczające  do wykonania 10 lub 25 oznaczeń;\n• wymagana ilość:  400 oznaczeń\n",null,null,"zestaw = \n10 ozn. ***",40,null,{"$f":"H10*I10","v":{"v":0,"d":"0.00"}}]
[null,"Cena oferty (brutto):",{"$nulls":7},{"$f":"SUM(J10:J10)","v":{"v":0,"d":"0.00"}}]
[null,"*","Należy wpisać nazwę producenta oraz numer katalogowy producenta oferowanego produktu. Niepodanie ww. danych będzie skutkować odrzuceniem oferty, chyba że dane te będą jednoznacznie wynikać z innych dokumentów dołączonych do oferty."]
[null,"**","Zawiera podatek od towarów i usług (VAT) wg obowiązującej stawki oraz koszty wszystkich świadczeń niezbędnych do wykonania zamówienia, w szczególności koszty transportu, ubezpieczenia, opakowania (także kaucjonowanego) itp."]
[null,"***","Należy wpisać odpowiednio jednostkę miary i ilość oferowanych jednostek miary. \nUWAGA: Przy wskazaniu jako jednostki miary - \"opakowanie\" należy wpisać ile oznaczeń zawiera zestaw, np.: zestaw  = 10 oznaczeń\nJako jednostkę miary należy wskazaćzestaw, które zostanie wycenione w kolumnie \"cena jednostkowa brutto\" i będzie możliwym zrealizowanie zamówienia na takie pojedyncze opakowanie."]
[]
[null,"Wymagania dodatkowe:"]
[]
[null,"1.","Do oferty wymagana instrukcja wykonania testu w j.polskim."]
[null,"2.","Do dostawy wymagany certyfikat jakości i lub certyfikat CE lub deklaracja zgodności CE w j. polskim lub j. angielskim w wersji papierowej lub dostępny w formie elektronicznej w miejscu wskazanym przez Wykonawcę (adres strony www)."]
[null,"3.","Do każdego dostarczonego zestawu testów wymagana instrukcja wykonania testu w j. polskim. w wersji papierowej lub dostępna w formie elektronicznej w miejscu wskazanym przez Wykonawcę (adres strony www)."]
[null,"4.","Okres ważności: min. 12 miesięcy od daty dostawy."]
[null,"5.","Produkt wymieniony w tabeli musi być wyrobem medycznym w rozumieniu ustawy z dn. 07 kwietnia 2022 r. o wyrobach medycznych."]
[null,"6.","Miejsce dostawy:\n","WSSE Kraków  ul. Prądnicka 76, 31-202 Kraków \n"]

{"sheet":"Część 19","index":19,"n_rows":23,"n_cols":10,"rows_kept":23,"merged":[[0,6,0,9],[2,0,2,9],[3,0,3,9],[4,0,4,9],[6,1,8,1],[6,2,8,2],[6,3,8,3],[6,4,6,5],[6,6,8,6],[6,7,8,7],[6,8,8,8],[6,9,8,9],[7,4,8,4],[7,5,8,5],[10,1,10,8],[11,2,11,9],[12,2,12,9],[18,2,18,9],[19,2,19,9]]}
[null,null,{"$f":"'Część 01'!$C$1","v":"AGZ.272.4.2025"},{"$nulls":3},"Załącznik 1A do SWZ"]
[]
["OPIS PRZEDMIOTU ZAMÓWIENIA - KALKULACJA CENY OFERTY"]
[{"$f":"MID(CELL(\"nazwa_pliku\",A1),FIND(\"]\",CELL(\"nazwa_pliku\",A1),1)+1,100)","v":"Część 19"}]
["Test immunoenzymatyczny do jakościowej analizy Giardia lamblia w próbkach kału"]
[{"$f":"HYPERLINK(\"#'Suma'!A1\",\"wstecz\")","v":"wstecz"}]
[null,"L.p.","Przedmiot zamówienia","Szczegółowy opis","Opis oferowanego produktu",null,"Jednostka miary","Ilość","Cena jednostkowa brutto [zł] **","Wartość brutto [zł] "]
[{"$nulls":4},"Producent*","Nr katalogowy producenta*"]
[]
[null,"1.","Test immunoenzymatyczny do jakościowej analizy Giardia lamblia w próbkach kału\n\n","• zastosowanie: wykrywanie specyficznego antygenu Giardia lamblia w kale metodą ELISA z wykorzystaniem przeciwciał monoklonalnych;                                  \n• zestaw powinien zawierać: mikropłytkę reakcyjną z mozliwością łamania stripów, koncentrat buforu płuczącego, bufor do rozcieńczania prób,kontrolę pozytywną, kontrolę negatywną, substrat, koniugaty, odczynnik do zatrzymywania reakcji                                                       \n• wszystkie odczynniki w zamawianych zestawach testowych, z wyjątkiem buforu płuczącego gotowe do użycia.                                                                                                                                                                                                                                                                                                                                                                                                                                                                                                                                 \n• dwa (pięciokrotne) etapy płukania buforem;\n• całkowity czas inkubacji -  60 min.            \n• ocena wzrokowa lub możliwość użycia czytnika;                                                    \n• instrukcja powinna zawierać tabelę reakcyjności krzyżowej z innymi patogenami.\n",null,null,"zestaw = 96 oznaczeń",1,null,{"$f":"H10*I10","v":{"v":0,"d":"0.00"}}]
[null,"Cena oferty (brutto):",{"$nulls":7},{"$f":"SUM(J10:J10)","v":{"v":0,"d":"0.00"}}]
[null,"*","Należy wpisać nazwę producenta oraz numer katalogowy producenta oferowanego produktu. Niepodanie ww. danych będzie skutkować odrzuceniem oferty, chyba że dane te będą jednoznacznie wynikać z innych dokumentów dołączonych do oferty."]
[null,"**","Zawiera podatek od towarów i usług (VAT) wg obowiązującej stawki oraz koszty wszystkich świadczeń niezbędnych do wykonania zamówienia, w szczególności koszty transportu, ubezpieczenia, opakowania (także kaucjonowanego) itp."]
[]
[null,"Wymagania dodatkowe:"]
[]
[null,"1.","Do oferty wymagany certyfikat jakości lub certyfikat CE lub deklaracja zgodności CE w j. polskim lub j. angielskim"]
[null,"2.","Do oferty wymagana instrukcja wykonania testu w j.polskim."]
[null,"3.","Do dostawy wymagany certyfikat jakości i lub certyfikat CE lub deklaracja zgodności CE w j. polskim lub j. angielskim w wersji papierowej lub dostępny w formie elektronicznej w miejscu wskazanym przez Wykonawcę (adres strony www)."]
[null,"4.","Do każdego dostarczonego zestawu testów wymagana instrukcja wykonania testu w j. polskim. w wersji papierowej lub dostępna w formie elektronicznej w miejscu wskazanym przez Wykonawcę (adres strony www)."]
[null,"5.","Okres ważności: min. 8 miesięcy od daty dostawy."]
[null,"6.","Produkt wymieniony w tabeli musi być wyrobem medycznym w rozumieniu ustawy z dn. 07 kwietnia 2022 r. o wyrobach medycznych."]
[null,"7.","Miejsce dostawy: \n","WSSE w Krakowie  ul. Prądnicka 76, 31-202 Kraków"]

{"sheet":"Część 20","index":20,"n_rows":27,"n_cols":10,"rows_kept":27,"merged":[[0,6,0,9],[2,0,2,9],[3,0,3,9],[4,0,4,9],[6,1,8,1],[6,2,8,2],[6,3,8,3],[6,4,6,5],[6,6,8,6],[6,7,8,7],[6,8,8,8],[6,9,8,9],[7,4,8,4],[7,5,8,5],[15,1,15,8],[16,2,16,9],[17,2,17,9],[21,2,21,9],[22,2,22,9],[23,2,23,7]]}
[null,null,{"$f":"'Część 01'!$C$1","v":"AGZ.272.4.2025"},{"$nulls":3},"Załącznik 1A do SWZ"]
[]
["OPIS PRZEDMIOTU ZAMÓWIENIA - KALKULACJA CENY OFERTY"]
[{"$f":"MID(CELL(\"nazwa_pliku\",A1),FIND(\"]\",CELL(\"nazwa_pliku\",A1),1)+1,100)","v":"Część 20"}]
["Wskaźniki biologiczne do kontroli procesu sterylizacji"]
[{"$f":"HYPERLINK(\"#'Suma'!A1\",\"wstecz\")","v":"wstecz"}]
[null,"L.p.","Przedmiot zamówienia","Szczegółowy opis","Opis oferowanego produktu",null,"Jednostka miary","Ilość","Cena jednostkowa brutto [zł] **","Wartość brutto [zł] "]
[{"$nulls":4},"Producent*","Nr katalogowy producenta*"]
[]
[null,"1.","Sporal A - wskaźnik biologiczny","•zastosowanie: wskaźnik do kontroli sterylizacji parą wodną w autoklawie;\n• wskaźnik to pasek bibuły nasączony zawiesiną spor szczepu Geobacillus stearothermophilus ATCC 7953, \n• opakowanie papierowo-foliowym, \n• na brzegu opakowania wskaźnik chemiczny zmieniający barwę po procesie sterylizacji,\n• wskaźnik wymaga posiewu do 24 godzin po zakończeniu sterylizacji, \n• Inkubacja wskaźnika na podłożu TSB 24 godziny w temperaturze 55-60 0C. ",null,null,"op. = 10wsk.",7,null,{"$f":"H10*I10","v":{"v":0,"d":"0.00"}}]
[null,"2.","Sporal A - wskaźnik biologiczny","• zastosowanie: wskaźnik do kontroli sterylizacji parą wodną w autoklawie \n• wskaźnik to pasek bibuły nasączony zawiesiną spor szczepu Geobacillus stearothermophilus ATCC 7953, \n• opakowanie papierowo-foliowe, \n• na brzegu opakowania wskaźnik chemiczny zmieniający barwę po procesie sterylizacji,\n• wskaźnik wymaga posiewu do 24 godzin po zakończeniu sterylizacji, \n•  Inkubacja wskaźnika na podłożu TSB 24 godziny w temperaturze 55-60 ºC.",null,null,"op. = 10wsk.",4,null,{"$f":"H11*I11","v":{"v":0,"d":"0.00"}}]
[null,"3.","Sporal A - wskaźnik biologiczny","• zastosowanie: wskaźnik do kontroli sterylizacji parą wodną w autoklawie \n• wskaźnik to pasek bibuły nasączony zawiesiną spor szczepu Geobacillus stearothermophilus ATCC 7953, \n• opakowanie papierowo-foliowe, \n• na brzegu opakowania wskaźnik chemiczny zmieniający barwę po procesie sterylizacji,\n• wskaźnik wymaga posiewu do 24 godzin po zakończeniu sterylizacji, \n•  Inkubacja wskaźnika na podłożu TSB 24 godziny w temperaturze 55-60 ºC.",null,null,"op. = 10wsk.",5,null,{"v":0,"d":"0.00"}]
[null,"4.","Sporal S - wskaźnik biologiczny","• zastosowanie: wskaźnik do kontroli sterylizacji suchym gorącym powietrzem;\n• wskaźnik to krążek bibuły nasycony zawiesiną niepatogennych, wysokoopornych przetrwalników szczepu Bacillus subtilis, \n• opakowanie: papierowa koperta;\n• warunki inkubacji: 7 dni w temperaturze 37 0C\n",null,null,"op. = 40wsk.",3,null,{"v":0,"d":"0.00"}]
[null,"5.","Sporal S - wskaźnik biologiczny","• zastosowanie: wskaźnik do kontroli sterylizacji suchym gorącym powietrzem;\n• wskaźnik to krążek bibuły nasycony zawiesiną niepatogennych, wysokoopornych przetrwalników szczepu Bacillus subtilis, \n• opakowanie: papierowa koperta;\n• warunki inkubacji: 7 dni w temperaturze 37 ºC",null,null,"op. = 40wsk.",1,null,{"v":0,"d":"0.00"}]
[null,"6.","Sporal S - wskaźnik biologiczny","• zastosowanie: wskaźnik do kontroli sterylizacji suchym gorącym powietrzem;\n• wskaźnik to krążek bibuły nasycony zawiesiną niepatogennych, wysokoopornych przetrwalników szczepu Bacillus subtilis, \n• opakowanie: papierowa koperta;\n• warunki inkubacji: 7 dni w temperaturze 37 0C",null,null,"op. = 40wsk.",1,null,{"v":0,"d":"0.00"}]
[null,"Cena oferty (brutto):",{"$nulls":7},{"$f":"SUM(J10:J15)","v":{"v":0,"d":"0.00"}}]
[null,"*","Należy wpisać nazwę producenta oraz numer katalogowy producenta oferowanego produktu. Niepodanie ww. danych będzie skutkować odrzuceniem oferty, chyba że dane te będą jednoznacznie wynikać z innych dokumentów dołączonych do oferty."]
[null,"**","Zawiera podatek od towarów i usług (VAT) wg obowiązującej stawki oraz koszty wszystkich świadczeń niezbędnych do wykonania zamówienia, w szczególności koszty transportu, ubezpieczenia, opakowania (także kaucjonowanego) itp."]
[]
[null,"Wymagania dodatkowe:"]
[]
[null,"1.","Do dostawy wymagany certyfikat jakości / świadectwo kontroli jakości lub inny dokument potwierdzający jakość produktu w języku polskim lub angielskim w wersji papierowej lub dostępny w formie elektronicznej w miejscu wskazanym przez Wykonawcę (adres strony www)."]
[null,"2.","Do dostawy instrukcja używania w języku polskim oraz protokół badań wg specyfikacji, zawierający wyniki analizy serii wskaźników w wersji papierowej lub dostępna w formie elektronicznej w miejscu wskazanym przez Wykonawcę (adres strony www)."]
[null,"3.","Okres ważności:  min. 12 miesięcy od daty dostawy. \n"]
[null,"4.","Miejsce dostawy:\n","WSSE Kraków  ul. Prądnicka 76, 31-202 Kraków - Dla poz. 1, 4\n"]
[{"$nulls":3},"WSSE Oddział Laboratoryjny w Tarnowie  ul. Mościckiego 10,  33-100 Tarnów - Dla poz. 2, 5    \n"]
[{"$nulls":3},"WSSE Oddział Laboratoryjny w Wadowicach  ul. Teatralna 2, 34-100 Wadowice - Dla poz. 3, 6\n"]

{"sheet":"Część 21","index":21,"n_rows":30,"n_cols":10,"rows_kept":30,"merged":[[0,6,0,9],[2,0,2,9],[3,0,3,9],[4,0,4,9],[6,1,8,1],[6,2,8,2],[6,3,8,3],[6,4,6,5],[6,6,8,6],[6,7,8,7],[6,8,8,8],[6,9,8,9],[7,4,8,4],[7,5,8,5],[18,1,18,8],[19,2,19,9],[20,2,20,9],[24,2,24,9],[25,2,25,9],[26,2,26,9]]}
[null,null,{"$f":"'Część 01'!$C$1","v":"AGZ.272.4.2025"},{"$nulls":3},"Załącznik 1A do SWZ"]
[]
["OPIS PRZEDMIOTU ZAMÓWIENIA - KALKULACJA CENY OFERTY"]
[{"$f":"MID(CELL(\"nazwa_pliku\",A1),FIND(\"]\",CELL(\"nazwa_pliku\",A1),1)+1,100)","v":"Część 21"}]
["Wskaźniki chemiczne do kontroli procesu sterylizacji"]
[{"$f":"HYPERLINK(\"#'Suma'!A1\",\"wstecz\")","v":"wstecz"}]
[null,"L.p.","Przedmiot zamówienia","Szczegółowy opis","Opis oferowanego produktu",null,"Jednostka miary","Ilość","Cena jednostkowa brutto [zł] **","Wartość brutto [zł] "]
[{"$nulls":4},"Producent*","Nr katalogowy producenta*"]
[]
[null,"1.","Taśma do sterylizacji gorącym powietrzem - TGP           \n                                                         ","• do kontroli procesu sterylizacji suchym, gorącym powietrzem",null,null,"op. = rolka",3,null,{"$f":"H10*I10","v":{"v":0,"d":"0.00"}}]
[null,"2.","Test emulacyjny 5,3/15 - wskaźnik chemiczny","• zastosowanie: do kontroli chemicznej procesu sterylizacji parowej w autoklawie;\n• pozwala kontrolować procesy o parametrach:\n  134 0C przez 5,3 minut,\n  121 0C przez 15 minut; \n• test klasy 6; \n• nietoksyczny.\n",null,null,"op. = 250szt.",3,null,{"$f":"H11*I11","v":{"v":0,"d":"0.00"}}]
[null,"3.","Test emulacyjny 5,3/15 - wskaźnik chemiczny","• zastosowanie: do kontroli chemicznej procesu sterylizacji parowej w autoklawie;\n• pozwala kontrolować procesy o parametrach:\n  134 ºC przez 5,3 minut,\n  121 ºC przez 15 minut; \n• test klasy 6; \n• nietoksyczny",null,null,"op. = 250szt.",1,null,{"v":0,"d":"0.00"}]
[null,"4.","Test emulacyjny 5,3/15 - wskaźnik chemiczny","• zastosowanie: do kontroli chemicznej procesu sterylizacji parowej w autoklawie;\n• pozwala kontrolować procesy o parametrach:\n  134 0C przez 5,3 minut,\n  121 0C przez 15 minut; \n• test klasy 6; \n• nietoksyczny\n",null,null,"op. = 250szt.",8,null,{"v":0,"d":"0.00"}]
[null,"5.","Test emulacyjny 7/20 - wskaźnik chemiczny","• zastosowanie: do kontroli chemicznej procesu sterylizacji parowej w autoklawie;\n• pozwala kontrolować procesy o parametrach: \n  134 0C przez 7 minut,\n  121 0C przez 20 minut; \n• test klasy 6; \n• nietoksyczny.\n",null,null,"op. = 250szt.",6,null,{"v":0,"d":"0.00"}]
[null,"6.","Test emulacyjny 7/20 - wskaźnik chemiczny","• zastosowanie: do kontroli chemicznej procesu sterylizacji parowej w autoklawie;\n• pozwala kontrolować procesy o parametrach: \n  134 0C przez 7 minut,\n  121 0C przez 20 minut; \n• test klasy 6; \n• nietoksyczny.\n",null,null,"op. = 250szt.",4,null,{"v":0,"d":"0.00"}]
[null,"7.","Test emulacyjny 7/20 - wskaźnik chemiczny","• zastosowanie: do kontroli chemicznej procesu sterylizacji parowej w autoklawie;\n• pozwala kontrolować procesy o parametrach: \n  134 ºC przez 7 minut,\n  121 ºC przez 20 minut; \n• test klasy 6; \n• nietoksyczny.",null,null,"op. = 250szt.",2,null,{"v":0,"d":"0.00"}]
[null,"8.","Wieloparametrowy wskaźnik chemiczny","• zastosowanie: do kontroli chemicznej procesu sterylizacji suchym powietrzem;  \n• test wieloparametrowy klasy 4 \n• sterylizacja w 170 oC ± 10 oC przez co najmniej godzinę;\n• nietoksyczny\n",null,null,"op. = 250szt.",1,null,{"v":0,"d":"0.00"}]
[null,"9.","Wieloparametrowy wskaźnik chemiczny","• zastosowanie: do kontroli chemicznej procesu sterylizacji suchym powietrzem;  \n• test wieloparametrowy klasy 4 \n• sterylizacja w 170 oC ± 10 oC przez co najmniej godzinę;\n• nietoksyczny",null,null,"op. = 250szt.",2,null,{"v":0,"d":"0.00"}]
[null,"Cena oferty (brutto):",{"$nulls":7},{"$f":"SUM(J10:J18)","v":{"v":0,"d":"0.00"}}]
[null,"*","Należy wpisać nazwę producenta oraz numer katalogowy producenta oferowanego produktu. Niepodanie ww. danych będzie skutkować odrzuceniem oferty, chyba że dane te będą jednoznacznie wynikać z innych dokumentów dołączonych do oferty."]
[null,"**","Zawiera podatek od towarów i usług (VAT) wg obowiązującej stawki oraz koszty wszystkich świadczeń niezbędnych do wykonania zamówienia, w szczególności koszty transportu, ubezpieczenia, opakowania (także kaucjonowanego) itp."]
[]
[null,"Wymagania dodatkowe:"]
[]
[null,"1.","Do dostawy wymagany certyfikat jakości lub certyfikat CE lub deklaracja zgodności CE w j. polskim lub angielskim w wersji papierowej lub dostępny w formie elektronicznej w miejscu wskazanym przez Wykonawcę (adres strony www)."]
[null,"2.","Do dostawy wymagana instrukcja używania w języku polskim w wersji papierowej lub dostępna w formie elektronicznej w miejscu wskazanym przez Wykonawcę (adres strony www)."]
[null,"3.","Okres ważności: min. 12 miesięcy od daty dostawy."]
[null,"4.","Miejsce dostawy:\n","WSSE Kraków  ul. Prądnicka 76, 31-202 Kraków - dla poz. 4, 5\n"]
[{"$nulls":3},"WSSE Oddział Laboratoryjny w Tarnowie  ul. Mościckiego 10,  33-100 Tarnów - dla poz. 1, 3, 7, 8,\n"]
[{"$nulls":3},"WSSE Oddział Laboratoryjny w Wadowicach  ul. Teatralna 2, 34-100 Wadowice - dla poz.  2, 6, 9"]

{"sheet":"Część 22","index":22,"n_rows":26,"n_cols":10,"rows_kept":26,"merged":[[0,6,0,9],[2,0,2,9],[3,0,3,9],[4,0,4,9],[6,1,8,1],[6,2,8,2],[6,3,8,3],[6,4,6,5],[6,6,8,6],[6,7,8,7],[6,8,8,8],[6,9,8,9],[7,4,8,4],[7,5,8,5],[12,1,12,8],[13,2,13,9],[14,2,14,9],[15,2,15,9],[21,2,21,9],[22,2,22,9],[23,2,23,9]]}
[null,null,{"$f":"'Część 01'!$C$1","v":"AGZ.272.4.2025"},{"$nulls":3},"Załącznik 1A do SWZ"]
[]
["OPIS PRZEDMIOTU ZAMÓWIENIA - KALKULACJA CENY OFERTY"]
[{"$f":"MID(CELL(\"nazwa_pliku\",A1),FIND(\"]\",CELL(\"nazwa_pliku\",A1),1)+1,100)","v":"Część 22"}]
["Testy do diagnostyki w kierunku zatruć pokarmowych"]
[{"$f":"HYPERLINK(\"#'Suma'!A1\",\"wstecz\")","v":"wstecz"}]
[null,"L.p.","Przedmiot zamówienia","Szczegółowy opis","Opis oferowanego produktu",null,"Jednostka miary","Ilość","Cena jednostkowa brutto [zł] **","Wartość brutto [zł] "]
[{"$nulls":4},"Producent*","Nr katalogowy producenta*"]
[]
[null,"1.","Panel do oznaczania infekcji przewodu pokarmowego","np producent: Viasure\nnr kat.  VS\u0002GP0112LE\nlub produkt równoważny***\ntesty genetyczne jakościowe wykonywane metodą real-time RT-PCR\n• opakowanie testu umożliwia przeprowadzenie 60 reakcji\n• testy w formie liofilizowanej umożliwiającej przechowywanie i transport w temperaturze pokojowej\n• producent dostarcza rozporcjowany mix reakcyjny w odpowiednich probówkach PCR,\n• wykrywający materiał genetyczny:\n- Salmonella, Campylobacter & Y. enterocolitica\n- Shigella/EIEC\n- Cryptosporidium, Giardia & E. histolytica\n- Norovirus GI + GII\n- Rotavirus\n- Adenovirus\n- Astrovirus\n- Sapovirus\n• zestaw zawiera kontrolę pozytywną, negatywną, bufor do rekonstytucji liofilizatu, wodę o jakości do PCR i wieczka do probówek oraz kontrolę ekstrakcji\n• zawiera egzogenną kontrolę prawidłowego pobrania materiału, izolacji i amplifikacji\n• kontrola pozytywna dla bezpieczeństwa zapakowana oddzielnie w dodatkowe opakowanie\n• reakcja odwrotnej transkrypcji przebiega razem z reakcją PCR\n\n\n",null,null,"op. = \n60 ozn. ",1,null,{"$f":"H10*I10","v":{"v":0,"d":"0.00"}}]
[null,"2.","Test do typowania chorobotwórczych szczepów E. coli (E. coli ETEC + EIEC) + (E. coli \nEHEC, EPEC, EIEC) Real Time PCR Detection Kit with \nEC (48)","• testy genetyczne jakościowe wykonywane metodą real-time RT-PCR                                                                                                               • Opakowanie testu umożliwia przeprowadzenie min. 48 reakcji\n• testy w formie liofilizowanej umożliwiającej przechowywanie i transport w temperaturze pokojowej,\n• różnicujący chorobotwórcze szczepy E. coli (E. coli ETEC + EIEC) + (E. coli \nEHEC, EPEC, EIEC)\n•zawiera egzogenną kontrolę prawidłowego pobrania materiału, izolacji i amplifikacji;\n• do wykonania oznaczenia nie są potrzebne dodatkowe probówki PCR\n• producent dostarcza rozporcjowany mix reakcyjny w odpowiednich probówkach PCR,\n• do zestawu dołączona jest instrukcja producenta testu,\n• test musi posiadać znak (CE, IVD) i być przeznaczony do diagnostyki medycznej in vitro zgodnie z ustawą z dn 07 kwietnia 2022 r. o wyrobach medycznych.\n• test musi być kompatybilny i zwalidowany na aparat Rotor-Gene® Q (Qiagen)\n• całkowita objętość reakcyjna: 20 μl\n• kontrola pozytywna dla bezpieczeństwa zapakowana oddzielnie w dodatkowe opakowanie\n                                                                                                                                                                                                                                               ",null,null,"op. = \n48 ozn. ",1,null,{"$f":"H11*I11","v":{"v":0,"d":"0.00"}}]
[null,"3.","Testy do wykrywania Campylobacter coli, C. lari & C. jejuni Real \nTime PCR Detection Kit with EC (96)","• testy genetyczne jakościowe wykonywane metodą real-time RT-PCR                                                                                                               • Opakowanie testu umożliwia przeprowadzenie min. 96 eakcji\n• testy w formie liofilizowanej umożliwiającej przechowywanie i transport w temperaturze pokojowej,\n• różnicujący Campylobacter coli, C. lari & C. jejuni \n• zawiera egzogenną kontrolę prawidłowego pobrania materiału, izolacji i amplifikacji,\n• do wykonania oznaczenia nie są potrzebne dodatkowe probówki PCR\n• producent dostarcza rozporcjowany mix reakcyjny w odpowiednich probówkach PCR,\n• do zestawu dołączona jest instrukcja producenta testu,\n• test musi posiadać znak (CE, IVD) i być przeznaczony do diagnostyki medycznej in vitro zgodnie z ustawą z dn 07 kwietnia 2022 r. o wyrobach medycznych.\n• test musi być kompatybilny i zwalidowany na aparat Rotor-Gene® Q (Qiagen) \n• całkowita objętość reakcyjna: 20 μl\n• kontrola pozytywna dla bezpieczeństwa zapakowana oddzielnie w dodatkowe opakowanie\n                                                                                                                                                                                                                                               ",null,null,"op. = \n96 ozn. ",1,null,{"$f":"H12*I12","v":{"v":0,"d":"0.00"}}]
[null,"Cena oferty (brutto):",{"$nulls":7},{"$f":"SUM(J10:J12)","v":{"v":0,"d":"0.00"}}]
[null,"*","Należy wpisać nazwę producenta oraz numer katalogowy producenta oferowanego produktu. Niepodanie ww. danych będzie skutkować odrzuceniem oferty, chyba że dane te będą jednoznacznie wynikać z innych dokumentów dołączonych do oferty."]
[null,"**","Zawiera podatek od towarów i usług (VAT) wg obowiązującej stawki oraz koszty wszystkich świadczeń niezbędnych do wykonania zamówienia, w szczególności koszty transportu, ubezpieczenia, opakowania (także kaucjonowanego) itp."]
[null,"***","Wykonawca oferujący produkt innego producenta, o innym numerze katalogowym niż wskazany jako przykład zobowiązany jest dostarczyć dokumenty potwierdzające równoważność oferowanego produktu z wymaganiami przedstawionymi w tabeli w języku polskim lub angielskim. "]
[]
[null,"Wymagania dodatkowe:"]
[]
[null,"1.","Do oferty wymagany certyfikat jakości lub certyfikat CE lub deklaracja zgodności CE w j. polskim lub j. angielskim"]
[null,"2.","Do oferty wymagana instrukcja wykonania testu w j.polskim."]
[null,"3.","Do dostawy wymagany certyfikat jakości i lub certyfikat CE lub deklaracja zgodności CE w j. polskim lub j. angielskim w wersji papierowej lub dostępny w formie elektronicznej w miejscu wskazanym przez Wykonawcę (adres strony www)."]
[null,"4.","Do każdego dostarczonego zestawu testów wymagana instrukcja wykonania testu w j. polskim. w wersji papierowej lub dostępna w formie elektronicznej w miejscu wskazanym przez Wykonawcę (adres strony www)."]
[null,"5.","Produkt musi być wyrobem medycznym lub wyrobem do diagnostyki IN VITRO w rozumieniu ustawy z dn. 07 kwietnia 2022 r. o wyrobach medycznych"]
[null,"6.","Okres ważnosci: min. 12 miesięcy od daty dostawy."]
[null,"7.","Miejsce dostawy:","WSSE w Krakowie  ul. Prądnicka 76, 31-202 Kraków\n"]